Workbook

Sheet Navigation Pane
B2: Brisbane City Council
B3: Local Government Infrastructure Plan (LGIP)
B6: Version No | D6: 1 | F6: Date | G6: 2022-11-01 | J6: Author | K6: BCC
B8: Comments | D8: Draft LGIP 1B - Land for Community Facilities - Schedule of Works model
D10: Inputs | I10: Calculation | N10: Outputs
C12: General Input Sheet | H12: Calculation Function | M12: Summary Cost Schedule
C13: l Financial Inputs l Other "generic" inputs | H13: Catchment based summary of demand, infrastructure (existing and new) and cost allocation Infrastructure Cost calculation for each catchment Optional Discounted Cashflow | M13: l Summary of demand and cost allocation by catchment l Final costs by catchment
M15: Summary Cash flow Projections
C16: l Unit Cost of Passive Assets l Unit Cost of Land | M16: l Summary of forecast Cap X and anticipated IC revenues. Refer to Revenue and Cash Flow model for output.
C19: l Estimates of current and future demand (per cost catchment)
C21: Asset Inputs

Sheet General Input Sheet
B2: ='Navigation Pane'!B2 -> Brisbane City Council
A3: Return to Navigation Pane
B4: General Input Sheet
B6: General Inputs | E6: Reference | G6: Value | I6: Comments
C8: Base Year | E8: YEAR | G8: 2021
G9: =YEAR -> 2021
C10: Term (between 15 and 30 years) | E10: TERM | G10: 15
B12: Application of Discounted Cash flow
C14: Calculate charges using Discounted Cash flow? (Y/N) | E14: DCFTRIGGER | G14: Yes
B16: General Financial Inputs
B18: Discount Rate (WACC):
C19: Average 10 Year Bond Rate | E19: TenYr
B21: Option 1 | C21: Basic Margin on 10 Yr. Bond Rate | E21: Margin | I21: 3.5% is the baseline figure quoted in LG Bulletin 06/01
C23: WACC: | E23: WACC1 | G23: 0.0591
B25: Option 2 | C25: Capital Structure (% Debt) | E25: Capstr
C26: Market Risk Premium | E26: Risk
C27: Asset Beta | E27: AssetBeta
C28: Cost of Debt | E28: Debt
C30: WACC: | E30: WACC2 | G30: 0.0591
C32: WACC Option to be applied in the calculation? | E32: WACC1 | G32: =IF(G14="No",0,IF(E32="WACC1",WACC1,IF(E32="WACC2",WACC2,"Error"))) -> 0.0591
B34: Escalation Rates
C35: Capital Escalation - Future Cap X | E35: PPI | G35: 0.0182 | I35: ten (10) yr. average Roads and Bridges Index (ABS 6427, Table 15, Index 3101)
C37: Capital Indexation Rates - Historical (June Qtr.)
E38: =YEAR -> 2021 | G38: 119.78 | I38: Roads and Bridges Index (ABS 6427, Table 15, Index 3101)
E39: =E38-1 -> 2020 | G39: 118.02
E40: =E39-1 -> 2019 | G40: 114.56
E41: 2018 | G41: 112.03
E42: =E41-1 -> 2017 | G42: 110.64
E43: =E42-1 -> 2016 | G43: 110.54
E44: =E43-1 -> 2015
E45: 2014
E46: 2013
E47: 2012
E48: 2011 | G48: 100.0076
C51: Land Escalation | E51: LandInd | G51: =(G53/G63)^(1/(E53-E63))-1 -> 0.02011185319 | I51: ten (10) yr. average Consumer Price Index Roads between 2011 - 2021 (Mar Qtr.)
E53: =YEAR -> 2021 | G53: 117.5284486 | I53: three (3) yr. rolling average Consumer Price Index (ABS 6427, Table 17, Index 3101, Series ID: A2333727L)
E54: =E53-1 -> 2020
E55: =E54-1 -> 2019
E56: 2018
E57: =E56-1 -> 2017
E58: =E57-1 -> 2016 | G58: 108.2858073
E59: =E58-1 -> 2015
E60: 2014
E61: 2013
E62: 2012
E63: 2011 | G63: 96.30859889
G65: =Chargeind -> 
G67: =Chargeind -> 

Sheet Existing Trunk Assets - LFCF
B1: ='Navigation Pane'!B2 -> Brisbane City Council
B2: Land for Community Facilities
A3: Return to "Existing Trunk Assets"
B4: EXISTING TRUNK ASSETS
B6: Land Valuation Type | D6: Location
H8: Asset Data | Q8: Catchment Asset Allocation | X8: Asset Usage | AE8: Cost Allocation
B9: Basic Asset Data | G9: Asset Attributes | I9: Basic Asset Valuation | N9: Refined Asset Value | Q9: Fringe | R9: Urban East | S9: Urban North | T9: Urban South | U9: Urban West | W9: =Q9 -> Fringe | X9: =R9 -> Urban East | Y9: =S9 -> Urban North | Z9: =T9 -> Urban South | AA9: =U9 -> Urban West | AB9: TOTALS | AD9: =Q9 -> Fringe | AE9: =R9 -> Urban East | AF9: =S9 -> Urban North | AG9: =T9 -> Urban South | AH9: =U9 -> Urban West
B10: Asset ID | C10: LGIP ID | D10: Asset Class | E10: Service Catchment | F10: Description | G10: Utility allowance ($56,000/site) | H10: Area size (m2) | I10: Construction Unit Rate ($/m) | J10: Construction Cost | K10: Size of land (m2) (*) | L10: Land Unit Rate ($/m2) | M10: Land Value | N10: Valuation Year | O10: Escalation | P10: Current Repalcement Cost | Q10: Fringe | R10: Urban East | S10: Urban North | T10: Urban South | U10: Urban West
Q11: 1 | R11: =Q11+1 -> 2 | S11: =R11+1 -> 3 | T11: 4 | U11: 5
B12: Councils ID (from GIS, FAR, AMA etc.) | C12: ID from the LGIP drawings | D12: Local/District | J12: May be calculated from unit rates OR unique values can be direct entered | Q12: =IFERROR(VLOOKUP(Q9,Parkscatch,6,FALSE),"") -> 21245 | R12: 331019 | S12: 508114 | T12: 486037 | U12: 287882 | AD12: =SUM(AD13:AD92) -> 0 | AE12: =SUM(AE13:AE92) -> 73946878.7 | AF12: =SUM(AF13:AF92) -> 509010309.1 | AG12: =SUM(AG13:AG92) -> 93917782.28 | AH12: =SUM(AH13:AH92) -> 34607871.5
B13: PCF192 | C13: EXIT-CF-107 | D13: District | E13: Urban South | F13: AUSTRALIAN PENSIONERS & SUPERANNUANTS LEAGUE QUEENSLAND | G13: 56000 | H13: 800 | I13: 45 | J13: =Table156[[#This Row],[Construction Unit Rate ($/m)]]*Table156[[#This Row],[Area size (m2)]]+Table156[[#This Row],[Utility allowance ($56,000/site)]] -> 92000 | K13: 800 | L13: 2046.753247 | M13: =Table156[[#This Row],[Land Unit Rate ($/m2)]]*Table156[[#This Row],[Size of land (m2) (*)]] -> 1637402.597 | N13: 2021 | O13: =IFERROR(('General Input Sheet'!$G$38/(VLOOKUP(N13,'General Input Sheet'!$E$38:$G$48,3,FALSE))),1) -> 1 | P13: =J13+M13*Table156[[#This Row],[Escalation]] -> 1729402.597 | Q13: =IF(Q$9=$E13,"y","") ->  | R13: =IF(R$9=$E13,"y","") ->  | T13: y | W13: =IF(Q13="y",100%,"") ->  | X13: =IF(R13="y",100%,"") ->  | Z13: 1 | AB13: =SUM(W13:AA13) -> 1 | AD13: =IF(W13="","",(W13/$AB13)*$P13) ->  | AG13: 1729402.597
B14: PCF192 | C14: EXIT-CF-108 | D14: District | E14: Urban South | F14: WEST END LIBRARY | G14: 56000 | H14: 800 | I14: 45 | J14: =Table156[[#This Row],[Construction Unit Rate ($/m)]]*Table156[[#This Row],[Area size (m2)]]+Table156[[#This Row],[Utility allowance ($56,000/site)]] -> 92000 | K14: 800 | L14: 2046.753247 | M14: =Table156[[#This Row],[Land Unit Rate ($/m2)]]*Table156[[#This Row],[Size of land (m2) (*)]] -> 1637402.597 | N14: 2021 | O14: =IFERROR(('General Input Sheet'!$G$38/(VLOOKUP(N14,'General Input Sheet'!$E$38:$G$48,3,FALSE))),1) -> 1 | P14: =J14+M14 -> 1729402.597 | Q14: =IF(Q$9=$E14,"y","") ->  | T14: y | W14: =IF(Q14="y",100%,"") ->  | X14: =IF(R14="y",100%,"") ->  | Y14: =IF(S14="y",100%,"") ->  | Z14: =IF(T14="y",100%,"") -> 1 | AA14: =IF(U14="y",100%,"") ->  | AB14: =SUM(W14:AA14) -> 1 | AD14: =IF(W14="","",(W14/$AB14)*$P14) ->  | AE14: =IF(X14="","",(X14/$AB14)*$P14) ->  | AF14: =IF(Y14="","",(Y14/$AB14)*$P14) ->  | AG14: =IF(Z14="","",(Z14/$AB14)*$P14) -> 1729402.597 | AH14: =IF(AA14="","",(AA14/$AB14)*$P14) -> 
B15: PCF53 | C15: EXIT-CF-109a | D15: District | E15: Urban North | F15: Bracken Ridge Hall | G15: 56000 | H15: 1300 | I15: 45 | J15: =Table156[[#This Row],[Construction Unit Rate ($/m)]]*Table156[[#This Row],[Area size (m2)]]+Table156[[#This Row],[Utility allowance ($56,000/site)]] -> 114500 | K15: 1300 | L15: 2046.753247 | M15: =Table156[[#This Row],[Land Unit Rate ($/m2)]]*Table156[[#This Row],[Size of land (m2) (*)]] -> 2660779.221 | N15: 2021 | O15: =IFERROR(('General Input Sheet'!$G$38/(VLOOKUP(N15,'General Input Sheet'!$E$38:$G$48,3,FALSE))),1) -> 1 | P15: 2775279.221 | S15: y | Y15: 1 | AB15: 1 | AF15: 2775279.221
B16: PCF53 | C16: EXIT-CF-109b | D16: District | E16: Urban North | F16: BRACKEN RIDGE LIBRARY | G16: 56000 | H16: 3400 | I16: 45 | J16: =Table156[[#This Row],[Construction Unit Rate ($/m)]]*Table156[[#This Row],[Area size (m2)]]+Table156[[#This Row],[Utility allowance ($56,000/site)]] -> 209000 | K16: 3400 | L16: 1228.051948 | M16: =Table156[[#This Row],[Land Unit Rate ($/m2)]]*Table156[[#This Row],[Size of land (m2) (*)]] -> 4175376.623 | N16: 2021 | O16: =IFERROR(('General Input Sheet'!$G$38/(VLOOKUP(N16,'General Input Sheet'!$E$38:$G$48,3,FALSE))),1) -> 1 | P16: 4384376.623 | S16: y | Y16: 1 | AB16: 1 | AF16: 4384376.623
B17: PCF54 | C17: EXIT-CF-110a | D17: Local | E17: Urban North | F17: Sandgate Hall | G17: 56000 | H17: 900 | I17: 45 | J17: =Table156[[#This Row],[Construction Unit Rate ($/m)]]*Table156[[#This Row],[Area size (m2)]]+Table156[[#This Row],[Utility allowance ($56,000/site)]] -> 96500 | K17: 900 | L17: 1228.051948 | M17: =Table156[[#This Row],[Land Unit Rate ($/m2)]]*Table156[[#This Row],[Size of land (m2) (*)]] -> 1105246.753 | N17: 2021 | O17: =IFERROR(('General Input Sheet'!$G$38/(VLOOKUP(N17,'General Input Sheet'!$E$38:$G$48,3,FALSE))),1) -> 1 | P17: 1201746.753 | S17: y | Y17: 1 | AB17: 1 | AF17: 1201746.753
B18: PCF54 | C18: EXIT-CF-110b | D18: District | E18: Urban North | F18: SANDGATE LIBRARY | G18: 56000 | H18: 300 | I18: 45 | J18: =Table156[[#This Row],[Construction Unit Rate ($/m)]]*Table156[[#This Row],[Area size (m2)]]+Table156[[#This Row],[Utility allowance ($56,000/site)]] -> 69500 | K18: 300 | L18: 1023.376623 | M18: =Table156[[#This Row],[Land Unit Rate ($/m2)]]*Table156[[#This Row],[Size of land (m2) (*)]] -> 307012.987 | N18: 2021 | O18: =IFERROR(('General Input Sheet'!$G$38/(VLOOKUP(N18,'General Input Sheet'!$E$38:$G$48,3,FALSE))),1) -> 1 | P18: 376512.987 | S18: y | Y18: 1 | AB18: 1 | AF18: 376512.987
B19: PCF172 | C19: EXIT-CF-111 | D19: District | E19: Urban West | F19: ITHACA POOL | G19: 56000 | H19: 2067 | I19: 45 | J19: =Table156[[#This Row],[Construction Unit Rate ($/m)]]*Table156[[#This Row],[Area size (m2)]]+Table156[[#This Row],[Utility allowance ($56,000/site)]] -> 149015 | K19: 2067 | L19: 1228.051948 | M19: =Table156[[#This Row],[Land Unit Rate ($/m2)]]*Table156[[#This Row],[Size of land (m2) (*)]] -> 2538383.377 | N19: 2021 | O19: =IFERROR(('General Input Sheet'!$G$38/(VLOOKUP(N19,'General Input Sheet'!$E$38:$G$48,3,FALSE))),1) -> 1 | P19: 2687398.377 | U19: y | AA19: 1 | AB19: 1 | AH19: 2687398.377
B20: PCF129 | C20: EXIT-CF-112 | D20: Local | E20: Urban West | F20: UPPER KEDRON (CEDAR CREEK) HALL BUILDING | G20: 56000 | H20: 1500 | I20: 45 | J20: =Table156[[#This Row],[Construction Unit Rate ($/m)]]*Table156[[#This Row],[Area size (m2)]]+Table156[[#This Row],[Utility allowance ($56,000/site)]] -> 123500 | K20: 1500 | L20: 1228.051948 | M20: =Table156[[#This Row],[Land Unit Rate ($/m2)]]*Table156[[#This Row],[Size of land (m2) (*)]] -> 1842077.922 | N20: 2021 | O20: =IFERROR(('General Input Sheet'!$G$38/(VLOOKUP(N20,'General Input Sheet'!$E$38:$G$48,3,FALSE))),1) -> 1 | P20: 1965577.922 | U20: y | AA20: 1 | AB20: 1 | AH20: 1965577.922
B21: PCF254 | C21: EXIT-CF-115 | D21: District | E21: Urban East | F21: MT GRAVATT LIBRARY | G21: 56000 | H21: 900 | I21: 45 | J21: =Table156[[#This Row],[Construction Unit Rate ($/m)]]*Table156[[#This Row],[Area size (m2)]]+Table156[[#This Row],[Utility allowance ($56,000/site)]] -> 96500 | K21: 900 | L21: 1023.376623 | M21: =Table156[[#This Row],[Land Unit Rate ($/m2)]]*Table156[[#This Row],[Size of land (m2) (*)]] -> 921038.961 | N21: 2021 | O21: =IFERROR(('General Input Sheet'!$G$38/(VLOOKUP(N21,'General Input Sheet'!$E$38:$G$48,3,FALSE))),1) -> 1 | P21: 1017538.961 | R21: y | X21: 1 | AB21: 1 | AE21: 1017538.961
B22: PCF212 | C22: EXIT-CF-120 | D22: District | E22: Urban South | F22: FAIRFIELD LIBRARY | G22: 56000 | H22: 500 | I22: 45 | J22: =Table156[[#This Row],[Construction Unit Rate ($/m)]]*Table156[[#This Row],[Area size (m2)]]+Table156[[#This Row],[Utility allowance ($56,000/site)]] -> 78500 | K22: 500 | L22: 1023.376623 | M22: =Table156[[#This Row],[Land Unit Rate ($/m2)]]*Table156[[#This Row],[Size of land (m2) (*)]] -> 511688.3117 | N22: 2021 | O22: =IFERROR(('General Input Sheet'!$G$38/(VLOOKUP(N22,'General Input Sheet'!$E$38:$G$48,3,FALSE))),1) -> 1 | P22: 590188.3117 | T22: y | Z22: 1 | AB22: 1 | AG22: 590188.3117
B23: PCF177 | C23: EXIT-CF-122a | D23: District | E23: Urban East | F23: WYNNUM LIBRARY | G23: 56000 | H23: 2300 | I23: 45 | J23: =Table156[[#This Row],[Construction Unit Rate ($/m)]]*Table156[[#This Row],[Area size (m2)]]+Table156[[#This Row],[Utility allowance ($56,000/site)]] -> 159500 | K23: 2300 | L23: 1228.051948 | M23: =Table156[[#This Row],[Land Unit Rate ($/m2)]]*Table156[[#This Row],[Size of land (m2) (*)]] -> 2824519.481 | N23: 2021 | O23: =IFERROR(('General Input Sheet'!$G$38/(VLOOKUP(N23,'General Input Sheet'!$E$38:$G$48,3,FALSE))),1) -> 1 | P23: 2984019.481 | R23: y | X23: 1 | AB23: 1 | AE23: 2984019.481
B24: PCF177 | C24: EXIT-CF-122b | D24: District | E24: Urban East | F24: WYNNUM COMMUNITY CENTRE BUILDING A | G24: 56000 | H24: 4600 | I24: 45 | J24: =Table156[[#This Row],[Construction Unit Rate ($/m)]]*Table156[[#This Row],[Area size (m2)]]+Table156[[#This Row],[Utility allowance ($56,000/site)]] -> 263000 | K24: 4600 | L24: 1535.064935 | M24: =Table156[[#This Row],[Land Unit Rate ($/m2)]]*Table156[[#This Row],[Size of land (m2) (*)]] -> 7061298.701 | N24: 2021 | O24: =IFERROR(('General Input Sheet'!$G$38/(VLOOKUP(N24,'General Input Sheet'!$E$38:$G$48,3,FALSE))),1) -> 1 | P24: 7324298.701 | R24: y | X24: 1 | AB24: 1 | AE24: 7324298.701
B25: PCF252 | C25: EXIT-CF-123a | D25: Local | E25: Urban South | F25: MOOROOKA COMMUNITY HALL BUILDING | G25: 56000 | H25: 2000 | I25: 45 | J25: =Table156[[#This Row],[Construction Unit Rate ($/m)]]*Table156[[#This Row],[Area size (m2)]]+Table156[[#This Row],[Utility allowance ($56,000/site)]] -> 146000 | K25: 2000 | L25: 1194.603062 | M25: =Table156[[#This Row],[Land Unit Rate ($/m2)]]*Table156[[#This Row],[Size of land (m2) (*)]] -> 2389206.125 | N25: 2021 | O25: =IFERROR(('General Input Sheet'!$G$38/(VLOOKUP(N25,'General Input Sheet'!$E$38:$G$48,3,FALSE))),1) -> 1 | P25: 2535206.125 | T25: y | Z25: 1 | AB25: 1 | AG25: 2535206.125
B26: PCF252 | C26: EXIT-CF-123b | D26: District | E26: Urban South | F26: Spinal Home Help Inc. | G26: 56000 | H26: 600 | I26: 45 | J26: =Table156[[#This Row],[Construction Unit Rate ($/m)]]*Table156[[#This Row],[Area size (m2)]]+Table156[[#This Row],[Utility allowance ($56,000/site)]] -> 83000 | K26: 600 | L26: 1194.603062 | M26: =Table156[[#This Row],[Land Unit Rate ($/m2)]]*Table156[[#This Row],[Size of land (m2) (*)]] -> 716761.8374 | N26: 2021 | O26: =IFERROR(('General Input Sheet'!$G$38/(VLOOKUP(N26,'General Input Sheet'!$E$38:$G$48,3,FALSE))),1) -> 1 | P26: 799761.8374 | T26: y | Z26: 1 | AB26: 1 | AG26: 799761.8374
B27: PCF294 | C27: EXIT-CF-126 | D27: District | E27: Urban South | F27: RUNCORN POOL | G27: 56000 | H27: 12666 | I27: 45 | J27: =Table156[[#This Row],[Construction Unit Rate ($/m)]]*Table156[[#This Row],[Area size (m2)]]+Table156[[#This Row],[Utility allowance ($56,000/site)]] -> 625970 | K27: 12666 | L27: 1279.220779 | M27: =Table156[[#This Row],[Land Unit Rate ($/m2)]]*Table156[[#This Row],[Size of land (m2) (*)]] -> 16202610.39 | N27: 2021 | O27: =IFERROR(('General Input Sheet'!$G$38/(VLOOKUP(N27,'General Input Sheet'!$E$38:$G$48,3,FALSE))),1) -> 1 | P27: 16828580.39 | T27: y | Z27: 1 | AB27: 1 | AG27: 16828580.39
B28: PCF133 | C28: EXIT-CF-128 | D28: District | E28: Urban North | F28: KEDRON SUBSTATION BUILDING | G28: 56000 | H28: 500 | I28: 45 | J28: =Table156[[#This Row],[Construction Unit Rate ($/m)]]*Table156[[#This Row],[Area size (m2)]]+Table156[[#This Row],[Utility allowance ($56,000/site)]] -> 78500 | K28: 500 | L28: 2558.441558 | M28: =Table156[[#This Row],[Land Unit Rate ($/m2)]]*Table156[[#This Row],[Size of land (m2) (*)]] -> 1279220.779 | N28: 2021 | O28: =IFERROR(('General Input Sheet'!$G$38/(VLOOKUP(N28,'General Input Sheet'!$E$38:$G$48,3,FALSE))),1) -> 1 | P28: 1357720.779 | S28: y | Y28: 1 | AB28: 1 | AF28: 1357720.779
B29: PCF213 | C29: EXIT-CF-132 | D29: District | E29: Urban South | F29: STONES CORNER LIBRARY | G29: 56000 | H29: 1600 | I29: 45 | J29: =Table156[[#This Row],[Construction Unit Rate ($/m)]]*Table156[[#This Row],[Area size (m2)]]+Table156[[#This Row],[Utility allowance ($56,000/site)]] -> 128000 | K29: 1600 | L29: 2558.441558 | M29: =Table156[[#This Row],[Land Unit Rate ($/m2)]]*Table156[[#This Row],[Size of land (m2) (*)]] -> 4093506.494 | N29: 2021 | O29: =IFERROR(('General Input Sheet'!$G$38/(VLOOKUP(N29,'General Input Sheet'!$E$38:$G$48,3,FALSE))),1) -> 1 | P29: 4221506.494 | T29: y | Z29: 1 | AB29: 1 | AG29: 4221506.494
B30: PCF230 | C30: EXIT-CF-133 | D30: District | E30: Urban West | F30: Jindalee Swimming Pool | G30: 56000 | H30: 5094 | I30: 45 | J30: =Table156[[#This Row],[Construction Unit Rate ($/m)]]*Table156[[#This Row],[Area size (m2)]]+Table156[[#This Row],[Utility allowance ($56,000/site)]] -> 285230 | K30: 5094 | L30: 2558.441558 | M30: =Table156[[#This Row],[Land Unit Rate ($/m2)]]*Table156[[#This Row],[Size of land (m2) (*)]] -> 13032701.3 | N30: 2021 | O30: =IFERROR(('General Input Sheet'!$G$38/(VLOOKUP(N30,'General Input Sheet'!$E$38:$G$48,3,FALSE))),1) -> 1 | P30: 13317931.3 | U30: y | AA30: 1 | AB30: 1 | AH30: 13317931.3
B31: PCF93 | C31: EXIT-CF-136 | D31: Local | E31: Urban North | F31: ZILLMERE COMMUNITY HALL BUILDING | G31: 56000 | H31: 600 | I31: 45 | J31: =Table156[[#This Row],[Construction Unit Rate ($/m)]]*Table156[[#This Row],[Area size (m2)]]+Table156[[#This Row],[Utility allowance ($56,000/site)]] -> 83000 | K31: 600 | L31: 1535.064935 | M31: =Table156[[#This Row],[Land Unit Rate ($/m2)]]*Table156[[#This Row],[Size of land (m2) (*)]] -> 921038.961 | N31: 2021 | O31: =IFERROR(('General Input Sheet'!$G$38/(VLOOKUP(N31,'General Input Sheet'!$E$38:$G$48,3,FALSE))),1) -> 1 | P31: 1004038.961 | S31: y | Y31: 1 | AB31: 1 | AF31: 1004038.961
B32: PCF273 | C32: EXIT-CF-138 | D32: District | E32: Urban South | F32: COOPERS PLAINS LIBRARY | G32: 56000 | H32: 8100 | I32: 45 | J32: =Table156[[#This Row],[Construction Unit Rate ($/m)]]*Table156[[#This Row],[Area size (m2)]]+Table156[[#This Row],[Utility allowance ($56,000/site)]] -> 420500 | K32: 8100 | L32: 990.5713964 | M32: =Table156[[#This Row],[Land Unit Rate ($/m2)]]*Table156[[#This Row],[Size of land (m2) (*)]] -> 8023628.311 | N32: 2021 | O32: =IFERROR(('General Input Sheet'!$G$38/(VLOOKUP(N32,'General Input Sheet'!$E$38:$G$48,3,FALSE))),1) -> 1 | P32: 8444128.311 | T32: y | Z32: 1 | AB32: 1 | AG32: 8444128.311
B33: PCF290 | C33: EXIT-CF-140 | D33: District | E33: Urban South | F33: KYABRA COMMUNITY ASSOCIATION INC. | G33: 56000 | H33: 200 | I33: 45 | J33: =Table156[[#This Row],[Construction Unit Rate ($/m)]]*Table156[[#This Row],[Area size (m2)]]+Table156[[#This Row],[Utility allowance ($56,000/site)]] -> 65000 | K33: 200 | L33: 1228.051948 | M33: =Table156[[#This Row],[Land Unit Rate ($/m2)]]*Table156[[#This Row],[Size of land (m2) (*)]] -> 245610.3896 | N33: 2021 | O33: =IFERROR(('General Input Sheet'!$G$38/(VLOOKUP(N33,'General Input Sheet'!$E$38:$G$48,3,FALSE))),1) -> 1 | P33: 310610.3896 | T33: y | Z33: 1 | AB33: 1 | AG33: 310610.3896
B34: PCF114 | C34: EXIT-CF-141 | D34: Local | E34: Urban North | F34: NORTHGATE COMMUNITY HALL BUILDING | G34: 56000 | H34: 1200 | I34: 45 | J34: =Table156[[#This Row],[Construction Unit Rate ($/m)]]*Table156[[#This Row],[Area size (m2)]]+Table156[[#This Row],[Utility allowance ($56,000/site)]] -> 110000 | K34: 1200 | L34: 2558.441558 | M34: =Table156[[#This Row],[Land Unit Rate ($/m2)]]*Table156[[#This Row],[Size of land (m2) (*)]] -> 3070129.87 | N34: 2021 | O34: =IFERROR(('General Input Sheet'!$G$38/(VLOOKUP(N34,'General Input Sheet'!$E$38:$G$48,3,FALSE))),1) -> 1 | P34: 3180129.87 | S34: y | Y34: 1 | AB34: 1 | AF34: 3180129.87
B35: PCF232 | C35: EXIT-CF-142 | D35: District | E35: Urban South | F35: Kindergarten | G35: 56000 | H35: 2000 | I35: 45 | J35: =Table156[[#This Row],[Construction Unit Rate ($/m)]]*Table156[[#This Row],[Area size (m2)]]+Table156[[#This Row],[Utility allowance ($56,000/site)]] -> 146000 | K35: 2000 | L35: 2558.441558 | M35: =Table156[[#This Row],[Land Unit Rate ($/m2)]]*Table156[[#This Row],[Size of land (m2) (*)]] -> 5116883.117 | N35: 2021 | O35: =IFERROR(('General Input Sheet'!$G$38/(VLOOKUP(N35,'General Input Sheet'!$E$38:$G$48,3,FALSE))),1) -> 1 | P35: 5262883.117 | T35: y | Z35: 1 | AB35: 1 | AG35: 5262883.117
B36: PCF234 | C36: EXIT-CF-143 | D36: District | E36: Urban East | F36: HOLLAND PARK LIBRARY | G36: 56000 | H36: 4400 | I36: 45 | J36: =Table156[[#This Row],[Construction Unit Rate ($/m)]]*Table156[[#This Row],[Area size (m2)]]+Table156[[#This Row],[Utility allowance ($56,000/site)]] -> 254000 | K36: 4400 | L36: 2558.441558 | M36: =Table156[[#This Row],[Land Unit Rate ($/m2)]]*Table156[[#This Row],[Size of land (m2) (*)]] -> 11257142.86 | N36: 2021 | O36: =IFERROR(('General Input Sheet'!$G$38/(VLOOKUP(N36,'General Input Sheet'!$E$38:$G$48,3,FALSE))),1) -> 1 | P36: 11511142.86 | R36: y | X36: 1 | AB36: 1 | AE36: 11511142.86
B37: PCF309 | C37: EXIT-CF-149 | D37: District | E37: Urban South | F37: CAROLE PARK SWIMMING POOL | G37: 56000 | H37: 5513 | I37: 45 | J37: =Table156[[#This Row],[Construction Unit Rate ($/m)]]*Table156[[#This Row],[Area size (m2)]]+Table156[[#This Row],[Utility allowance ($56,000/site)]] -> 304085 | K37: 5513 | L37: 1279.220779 | M37: =Table156[[#This Row],[Land Unit Rate ($/m2)]]*Table156[[#This Row],[Size of land (m2) (*)]] -> 7052344.156 | N37: 2021 | O37: =IFERROR(('General Input Sheet'!$G$38/(VLOOKUP(N37,'General Input Sheet'!$E$38:$G$48,3,FALSE))),1) -> 1 | P37: 7356429.156 | T37: y | Z37: 1 | AB37: 1 | AG37: 7356429.156
B38: PCF193 | C38: EXIT-CF-151 | D38: District | E38: Urban East | F38: Metro Arts Ltd. | G38: 56000 | H38: 400 | I38: 45 | J38: =Table156[[#This Row],[Construction Unit Rate ($/m)]]*Table156[[#This Row],[Area size (m2)]]+Table156[[#This Row],[Utility allowance ($56,000/site)]] -> 74000 | K38: 400 | L38: 2558.441558 | M38: =Table156[[#This Row],[Land Unit Rate ($/m2)]]*Table156[[#This Row],[Size of land (m2) (*)]] -> 1023376.623 | N38: 2021 | O38: =IFERROR(('General Input Sheet'!$G$38/(VLOOKUP(N38,'General Input Sheet'!$E$38:$G$48,3,FALSE))),1) -> 1 | P38: 1097376.623 | R38: y | X38: 1 | AB38: 1 | AE38: 1097376.623
B39: PCF93 | C39: EXIT-CF-153 | D39: District | E39: Urban North | F39: ZILLMERE LIBRARY | G39: 56000 | H39: 1000 | I39: 45 | J39: =Table156[[#This Row],[Construction Unit Rate ($/m)]]*Table156[[#This Row],[Area size (m2)]]+Table156[[#This Row],[Utility allowance ($56,000/site)]] -> 101000 | K39: 1000 | L39: 2558.441558 | M39: =Table156[[#This Row],[Land Unit Rate ($/m2)]]*Table156[[#This Row],[Size of land (m2) (*)]] -> 2558441.558 | N39: 2021 | O39: =IFERROR(('General Input Sheet'!$G$38/(VLOOKUP(N39,'General Input Sheet'!$E$38:$G$48,3,FALSE))),1) -> 1 | P39: 2659441.558 | S39: y | Y39: 1 | AB39: 1 | AF39: 2659441.558
B40: PCF192 | C40: EXIT-CF-156a | D40: District | E40: Urban North | F40: CITY HALL BUILDING - rooms | G40: 56000 | H40: 8500 | I40: 45 | J40: =Table156[[#This Row],[Construction Unit Rate ($/m)]]*Table156[[#This Row],[Area size (m2)]]+Table156[[#This Row],[Utility allowance ($56,000/site)]] -> 438500 | K40: 8500 | L40: 12280.51948 | M40: =Table156[[#This Row],[Land Unit Rate ($/m2)]]*Table156[[#This Row],[Size of land (m2) (*)]] -> 104384415.6 | N40: 2021 | O40: =IFERROR(('General Input Sheet'!$G$38/(VLOOKUP(N40,'General Input Sheet'!$E$38:$G$48,3,FALSE))),1) -> 1 | P40: 104822915.6 | S40: y | Y40: 1 | AB40: 1 | AF40: 104822915.6
B41: PCF192 | C41: EXIT-CF-156b | D41: Principal | E41: Urban North | F41: CITY HALL BUILDING - Museum of Brisbane | G41: 0 | H41: 8500 | I41: 45 | J41: =Table156[[#This Row],[Construction Unit Rate ($/m)]]*Table156[[#This Row],[Area size (m2)]]+Table156[[#This Row],[Utility allowance ($56,000/site)]] -> 382500 | K41: 8500 | L41: 12280.51948 | M41: =Table156[[#This Row],[Land Unit Rate ($/m2)]]*Table156[[#This Row],[Size of land (m2) (*)]] -> 104384415.6 | N41: 2021 | O41: =IFERROR(('General Input Sheet'!$G$38/(VLOOKUP(N41,'General Input Sheet'!$E$38:$G$48,3,FALSE))),1) -> 1 | P41: 104766915.6 | S41: y | Y41: 1 | AB41: 1 | AF41: 104766915.6
B42: PCF192 | C42: EXIT-CF-156c | D42: Principal | E42: Urban North | F42: CITY HALL BUILDING - stage | G42: 0 | H42: 8500 | I42: 45 | J42: =Table156[[#This Row],[Construction Unit Rate ($/m)]]*Table156[[#This Row],[Area size (m2)]]+Table156[[#This Row],[Utility allowance ($56,000/site)]] -> 382500 | K42: 8500 | L42: 12280.51948 | M42: =Table156[[#This Row],[Land Unit Rate ($/m2)]]*Table156[[#This Row],[Size of land (m2) (*)]] -> 104384415.6 | N42: 2021 | O42: =IFERROR(('General Input Sheet'!$G$38/(VLOOKUP(N42,'General Input Sheet'!$E$38:$G$48,3,FALSE))),1) -> 1 | P42: 104766915.6 | S42: y | Y42: 1 | AB42: 1 | AF42: 104766915.6
B43: PCF249 | C43: EXIT-CF-158a | D43: District | E43: Urban West | F43: MT OMMANEY LIBRARY | G43: 56000 | H43: 1000 | I43: 45 | J43: =Table156[[#This Row],[Construction Unit Rate ($/m)]]*Table156[[#This Row],[Area size (m2)]]+Table156[[#This Row],[Utility allowance ($56,000/site)]] -> 101000 | K43: 1000 | L43: 1228.051948 | M43: =Table156[[#This Row],[Land Unit Rate ($/m2)]]*Table156[[#This Row],[Size of land (m2) (*)]] -> 1228051.948 | N43: 2021 | O43: =IFERROR(('General Input Sheet'!$G$38/(VLOOKUP(N43,'General Input Sheet'!$E$38:$G$48,3,FALSE))),1) -> 1 | P43: 1329051.948 | U43: y | AA43: 1 | AB43: 1 | AH43: 1329051.948
B44: PCF215 | C44: EXIT-CF-162 | D44: Principal | E44: Urban East | F44: CARINDALE LIBRARY | G44: 56000 | H44: 1989 | I44: 45 | J44: =Table156[[#This Row],[Construction Unit Rate ($/m)]]*Table156[[#This Row],[Area size (m2)]]+Table156[[#This Row],[Utility allowance ($56,000/site)]] -> 145505 | K44: 1989 | L44: 1535.064935 | M44: =Table156[[#This Row],[Land Unit Rate ($/m2)]]*Table156[[#This Row],[Size of land (m2) (*)]] -> 3053244.156 | N44: 2021 | O44: =IFERROR(('General Input Sheet'!$G$38/(VLOOKUP(N44,'General Input Sheet'!$E$38:$G$48,3,FALSE))),1) -> 1 | P44: 3198749.156 | R44: y | X44: 1 | AB44: 1 | AE44: 3198749.156
B45: PCF209 | C45: EXIT-CF-166 | D45: District | E45: Urban West | F45: KENMORE LIBRARY | G45: 56000 | H45: 1600 | I45: 45 | J45: =Table156[[#This Row],[Construction Unit Rate ($/m)]]*Table156[[#This Row],[Area size (m2)]]+Table156[[#This Row],[Utility allowance ($56,000/site)]] -> 128000 | K45: 1600 | L45: 1023.376623 | M45: =Table156[[#This Row],[Land Unit Rate ($/m2)]]*Table156[[#This Row],[Size of land (m2) (*)]] -> 1637402.597 | N45: 2021 | O45: =IFERROR(('General Input Sheet'!$G$38/(VLOOKUP(N45,'General Input Sheet'!$E$38:$G$48,3,FALSE))),1) -> 1 | P45: 1765402.597 | U45: y | AA45: 1 | AB45: 1 | AH45: 1765402.597
B46: PCF254 | C46: EXIT-CF-170a | D46: District | E46: Urban East | F46: Hibiscus Swimming Pool | G46: 56000 | H46: 11474 | I46: 45 | J46: =Table156[[#This Row],[Construction Unit Rate ($/m)]]*Table156[[#This Row],[Area size (m2)]]+Table156[[#This Row],[Utility allowance ($56,000/site)]] -> 572330 | K46: 11474 | L46: 1228.051948 | M46: =Table156[[#This Row],[Land Unit Rate ($/m2)]]*Table156[[#This Row],[Size of land (m2) (*)]] -> 14090668.05 | N46: 2021 | O46: =IFERROR(('General Input Sheet'!$G$38/(VLOOKUP(N46,'General Input Sheet'!$E$38:$G$48,3,FALSE))),1) -> 1 | P46: 14662998.05 | Q46: =IF(Q$9=$E46,"y","") ->  | R46: y | X46: 1 | AB46: 1 | AE46: 14662998.05
B47: PCF254 | C47: EXIT-CF-170b | D47: Principal | E47: Urban East | F47: Hibiscus Sports Complex | G47: 56000 | H47: 12335 | I47: 45 | J47: =Table156[[#This Row],[Construction Unit Rate ($/m)]]*Table156[[#This Row],[Area size (m2)]]+Table156[[#This Row],[Utility allowance ($56,000/site)]] -> 611075 | K47: 12335 | L47: 102.3376623 | M47: =Table156[[#This Row],[Land Unit Rate ($/m2)]]*Table156[[#This Row],[Size of land (m2) (*)]] -> 1262335.065 | N47: 2021 | O47: =IFERROR(('General Input Sheet'!$G$38/(VLOOKUP(N47,'General Input Sheet'!$E$38:$G$48,3,FALSE))),1) -> 1 | P47: 1873410.065 | R47: y | X47: 1 | AB47: 1 | AE47: 1873410.065
B48: PCF192 | C48: EXIT-CF-171 | D48: Metro | E48: Urban North | F48: BRISBANE SQUARE LIBRARY | G48: 56000 | H48: 4600 | I48: 45 | J48: =Table156[[#This Row],[Construction Unit Rate ($/m)]]*Table156[[#This Row],[Area size (m2)]]+Table156[[#This Row],[Utility allowance ($56,000/site)]] -> 263000 | K48: 4600 | L48: 12280.51948 | M48: =Table156[[#This Row],[Land Unit Rate ($/m2)]]*Table156[[#This Row],[Size of land (m2) (*)]] -> 56490389.61 | N48: 2021 | O48: =IFERROR(('General Input Sheet'!$G$38/(VLOOKUP(N48,'General Input Sheet'!$E$38:$G$48,3,FALSE))),1) -> 1 | P48: 56753389.61 | S48: y | Y48: 1 | AB48: 1 | AF48: 56753389.61
B49: PCF291 | C49: EXIT-CF-176a | D49: District | E49: Urban South | F49: Inala Arts | G49: 56000 | H49: 800 | I49: 45 | J49: =Table156[[#This Row],[Construction Unit Rate ($/m)]]*Table156[[#This Row],[Area size (m2)]]+Table156[[#This Row],[Utility allowance ($56,000/site)]] -> 92000 | K49: 800 | L49: 1228.051948 | M49: =Table156[[#This Row],[Land Unit Rate ($/m2)]]*Table156[[#This Row],[Size of land (m2) (*)]] -> 982441.5584 | N49: 2021 | O49: =IFERROR(('General Input Sheet'!$G$38/(VLOOKUP(N49,'General Input Sheet'!$E$38:$G$48,3,FALSE))),1) -> 1 | P49: 1074441.558 | T49: y | Z49: 1 | AB49: 1 | AG49: 1074441.558
B50: PCF291 | C50: EXIT-CF-176b | D50: District | E50: Urban South | F50: INALA ART GALLERY BUILDING | G50: 56000 | H50: 200 | I50: 45 | J50: =Table156[[#This Row],[Construction Unit Rate ($/m)]]*Table156[[#This Row],[Area size (m2)]]+Table156[[#This Row],[Utility allowance ($56,000/site)]] -> 65000 | K50: 200 | L50: 1023.376623 | M50: =Table156[[#This Row],[Land Unit Rate ($/m2)]]*Table156[[#This Row],[Size of land (m2) (*)]] -> 204675.3247 | N50: 2021 | O50: =IFERROR(('General Input Sheet'!$G$38/(VLOOKUP(N50,'General Input Sheet'!$E$38:$G$48,3,FALSE))),1) -> 1 | P50: 269675.3247 | T50: y | Z50: 1 | AB50: 1 | AG50: 269675.3247
B51: PCF291 | C51: EXIT-CF-176c | D51: District | E51: Urban South | F51: INALA LIBRARY | G51: 56000 | H51: 800 | I51: 45 | J51: =Table156[[#This Row],[Construction Unit Rate ($/m)]]*Table156[[#This Row],[Area size (m2)]]+Table156[[#This Row],[Utility allowance ($56,000/site)]] -> 92000 | K51: 800 | L51: 1023.376623 | M51: =Table156[[#This Row],[Land Unit Rate ($/m2)]]*Table156[[#This Row],[Size of land (m2) (*)]] -> 818701.2987 | N51: 2021 | O51: =IFERROR(('General Input Sheet'!$G$38/(VLOOKUP(N51,'General Input Sheet'!$E$38:$G$48,3,FALSE))),1) -> 1 | P51: 910701.2987 | T51: y | Z51: 1 | AB51: 1 | AG51: 910701.2987
B52: PCF313 | C52: EXIT-CF-178 | D52: Principal | E52: Urban South | F52: SUNNYBANK HILLS LIBRARY | G52: 56000 | H52: 1700 | I52: 45 | J52: =Table156[[#This Row],[Construction Unit Rate ($/m)]]*Table156[[#This Row],[Area size (m2)]]+Table156[[#This Row],[Utility allowance ($56,000/site)]] -> 132500 | K52: 1700 | L52: 1228.051948 | M52: =Table156[[#This Row],[Land Unit Rate ($/m2)]]*Table156[[#This Row],[Size of land (m2) (*)]] -> 2087688.312 | N52: 2021 | O52: =IFERROR(('General Input Sheet'!$G$38/(VLOOKUP(N52,'General Input Sheet'!$E$38:$G$48,3,FALSE))),1) -> 1 | P52: 2220188.312 | T52: y | Z52: 1 | AB52: 1 | AG52: 2220188.312
B53: PCF93 | C53: EXIT-CF-181 | D53: District | E53: Urban North | F53: NORTH EAST COMMUNITY SUPPORT GROUP INC. | G53: 56000 | H53: 1700 | I53: 45 | J53: =Table156[[#This Row],[Construction Unit Rate ($/m)]]*Table156[[#This Row],[Area size (m2)]]+Table156[[#This Row],[Utility allowance ($56,000/site)]] -> 132500 | K53: 1700 | L53: 2558.441558 | M53: =Table156[[#This Row],[Land Unit Rate ($/m2)]]*Table156[[#This Row],[Size of land (m2) (*)]] -> 4349350.649 | N53: 2021 | O53: =IFERROR(('General Input Sheet'!$G$38/(VLOOKUP(N53,'General Input Sheet'!$E$38:$G$48,3,FALSE))),1) -> 1 | P53: 4481850.649 | S53: y | Y53: 1 | AB53: 1 | AF53: 4481850.649
B54: PCF174 | C54: EXIT-CF-185 | D54: District | E54: Urban East | F54: BULIMBA LIBRARY | G54: 56000 | H54: 1500 | I54: 45 | J54: =Table156[[#This Row],[Construction Unit Rate ($/m)]]*Table156[[#This Row],[Area size (m2)]]+Table156[[#This Row],[Utility allowance ($56,000/site)]] -> 123500 | K54: 1500 | L54: 2558.441558 | M54: =Table156[[#This Row],[Land Unit Rate ($/m2)]]*Table156[[#This Row],[Size of land (m2) (*)]] -> 3837662.338 | N54: 2021 | O54: =IFERROR(('General Input Sheet'!$G$38/(VLOOKUP(N54,'General Input Sheet'!$E$38:$G$48,3,FALSE))),1) -> 1 | P54: 3961162.338 | R54: y | X54: 1 | AB54: 1 | AE54: 3961162.338
B55: PCF172 | C55: EXIT-CF-189 | D55: Local | E55: Urban West | F55: ITHACA HALL BUILDING | G55: 56000 | H55: 1300 | I55: 45 | J55: =Table156[[#This Row],[Construction Unit Rate ($/m)]]*Table156[[#This Row],[Area size (m2)]]+Table156[[#This Row],[Utility allowance ($56,000/site)]] -> 114500 | K55: 1300 | L55: 2558.441558 | M55: =Table156[[#This Row],[Land Unit Rate ($/m2)]]*Table156[[#This Row],[Size of land (m2) (*)]] -> 3325974.026 | N55: 2021 | O55: =IFERROR(('General Input Sheet'!$G$38/(VLOOKUP(N55,'General Input Sheet'!$E$38:$G$48,3,FALSE))),1) -> 1 | P55: 3440474.026 | U55: y | AA55: 1 | AB55: 1 | AH55: 3440474.026
B56: PCF54 | C56: EXIT-CF-192 | D56: District | E56: Urban North | F56: SANDGATE & DISTRICT MEALS ON WHEELS INC. | G56: 56000 | H56: 1000 | I56: 45 | J56: =Table156[[#This Row],[Construction Unit Rate ($/m)]]*Table156[[#This Row],[Area size (m2)]]+Table156[[#This Row],[Utility allowance ($56,000/site)]] -> 101000 | K56: 1000 | L56: 2558.441558 | M56: =Table156[[#This Row],[Land Unit Rate ($/m2)]]*Table156[[#This Row],[Size of land (m2) (*)]] -> 2558441.558 | N56: 2021 | O56: =IFERROR(('General Input Sheet'!$G$38/(VLOOKUP(N56,'General Input Sheet'!$E$38:$G$48,3,FALSE))),1) -> 1 | P56: 2659441.558 | S56: y | Y56: 1 | AB56: 1 | AF56: 2659441.558
B57: PCF311 | C57: EXIT-CF-193 | D57: District | E57: Urban South | F57: INALA COMMUNITY HOUSE | G57: 56000 | H57: 1800 | I57: 45 | J57: =Table156[[#This Row],[Construction Unit Rate ($/m)]]*Table156[[#This Row],[Area size (m2)]]+Table156[[#This Row],[Utility allowance ($56,000/site)]] -> 137000 | K57: 1800 | L57: 1279.220779 | M57: =Table156[[#This Row],[Land Unit Rate ($/m2)]]*Table156[[#This Row],[Size of land (m2) (*)]] -> 2302597.403 | N57: 2021 | O57: =IFERROR(('General Input Sheet'!$G$38/(VLOOKUP(N57,'General Input Sheet'!$E$38:$G$48,3,FALSE))),1) -> 1 | P57: 2439597.403 | T57: y | Z57: 1 | AB57: 1 | AG57: 2439597.403
B58: PCF172 | C58: EXIT-CF-194 | D58: District | E58: Urban North | F58: Spring Hill Baths | G58: 56000 | H58: 895 | I58: 45 | J58: =Table156[[#This Row],[Construction Unit Rate ($/m)]]*Table156[[#This Row],[Area size (m2)]]+Table156[[#This Row],[Utility allowance ($56,000/site)]] -> 96275 | K58: 895 | L58: 2046.753247 | M58: =Table156[[#This Row],[Land Unit Rate ($/m2)]]*Table156[[#This Row],[Size of land (m2) (*)]] -> 1831844.156 | N58: 2021 | O58: =IFERROR(('General Input Sheet'!$G$38/(VLOOKUP(N58,'General Input Sheet'!$E$38:$G$48,3,FALSE))),1) -> 1 | P58: 1928119.156 | S58: y | Y58: 1 | AB58: 1 | AF58: 1928119.156
B59: PCF173 | C59: EXIT-CF-197 | D59: District | E59: Urban North | F59: VALLEY SWIMMING POOL | G59: 56000 | H59: 4559 | I59: 45 | J59: =Table156[[#This Row],[Construction Unit Rate ($/m)]]*Table156[[#This Row],[Area size (m2)]]+Table156[[#This Row],[Utility allowance ($56,000/site)]] -> 261155 | K59: 4559 | L59: 5116.883117 | M59: =Table156[[#This Row],[Land Unit Rate ($/m2)]]*Table156[[#This Row],[Size of land (m2) (*)]] -> 23327870.13 | N59: 2021 | O59: =IFERROR(('General Input Sheet'!$G$38/(VLOOKUP(N59,'General Input Sheet'!$E$38:$G$48,3,FALSE))),1) -> 1 | P59: 23589025.13 | S59: y | Y59: 1 | AB59: 1 | AF59: 23589025.13
B60: PCF133 | C60: EXIT-CF-198 | D60: Local | E60: Urban North | F60: TOOMBUL SHIRE HALL BUILDING | G60: 56000 | H60: 900 | I60: 45 | J60: =Table156[[#This Row],[Construction Unit Rate ($/m)]]*Table156[[#This Row],[Area size (m2)]]+Table156[[#This Row],[Utility allowance ($56,000/site)]] -> 96500 | K60: 900 | L60: 1176.883117 | M60: =Table156[[#This Row],[Land Unit Rate ($/m2)]]*Table156[[#This Row],[Size of land (m2) (*)]] -> 1059194.805 | N60: 2021 | O60: =IFERROR(('General Input Sheet'!$G$38/(VLOOKUP(N60,'General Input Sheet'!$E$38:$G$48,3,FALSE))),1) -> 1 | P60: 1155694.805 | S60: y | Y60: 1 | AB60: 1 | AF60: 1155694.805
B61: PCF293 | C61: EXIT-CF-199 | D61: District | E61: Urban South | F61: SUNNYBANK THEATRE GROUP INC | G61: 56000 | H61: 2700 | I61: 45 | J61: =Table156[[#This Row],[Construction Unit Rate ($/m)]]*Table156[[#This Row],[Area size (m2)]]+Table156[[#This Row],[Utility allowance ($56,000/site)]] -> 177500 | K61: 2700 | L61: 1176.883117 | M61: =Table156[[#This Row],[Land Unit Rate ($/m2)]]*Table156[[#This Row],[Size of land (m2) (*)]] -> 3177584.416 | N61: 2021 | O61: =IFERROR(('General Input Sheet'!$G$38/(VLOOKUP(N61,'General Input Sheet'!$E$38:$G$48,3,FALSE))),1) -> 1 | P61: 3355084.416 | T61: y | Z61: 1 | AB61: 1 | AG61: 3355084.416
B62: PCF154 | C62: EXIT-CF-200a | D62: Local | E62: Urban North | F62: HAMILTON TOWN HALL BUILDING | G62: 56000 | H62: 600 | I62: 45 | J62: =Table156[[#This Row],[Construction Unit Rate ($/m)]]*Table156[[#This Row],[Area size (m2)]]+Table156[[#This Row],[Utility allowance ($56,000/site)]] -> 83000 | K62: 600 | L62: 2558.441558 | M62: =Table156[[#This Row],[Land Unit Rate ($/m2)]]*Table156[[#This Row],[Size of land (m2) (*)]] -> 1535064.935 | N62: 2021 | O62: =IFERROR(('General Input Sheet'!$G$38/(VLOOKUP(N62,'General Input Sheet'!$E$38:$G$48,3,FALSE))),1) -> 1 | P62: 1618064.935 | S62: y | Y62: 1 | AB62: 1 | AF62: 1618064.935
B63: PCF154 | C63: EXIT-CF-200b | D63: District | E63: Urban North | F63: HAMILTON LIBRARY | G63: 56000 | H63: 400 | I63: 45 | J63: =Table156[[#This Row],[Construction Unit Rate ($/m)]]*Table156[[#This Row],[Area size (m2)]]+Table156[[#This Row],[Utility allowance ($56,000/site)]] -> 74000 | K63: 400 | L63: 2558.441558 | M63: =Table156[[#This Row],[Land Unit Rate ($/m2)]]*Table156[[#This Row],[Size of land (m2) (*)]] -> 1023376.623 | N63: 2021 | O63: =IFERROR(('General Input Sheet'!$G$38/(VLOOKUP(N63,'General Input Sheet'!$E$38:$G$48,3,FALSE))),1) -> 1 | P63: 1097376.623 | S63: y | Y63: 1 | AB63: 1 | AF63: 1097376.623
B64: PCF211 | C64: EXIT-CF-202 | D64: Principal | E64: Urban West | F64: INDOOROOPILLY LIBRARY | G64: 56000 | H64: 1700 | I64: 45 | J64: =Table156[[#This Row],[Construction Unit Rate ($/m)]]*Table156[[#This Row],[Area size (m2)]]+Table156[[#This Row],[Utility allowance ($56,000/site)]] -> 132500 | K64: 1700 | L64: 1535.064935 | M64: =Table156[[#This Row],[Land Unit Rate ($/m2)]]*Table156[[#This Row],[Size of land (m2) (*)]] -> 2609610.39 | N64: 2021 | O64: =IFERROR(('General Input Sheet'!$G$38/(VLOOKUP(N64,'General Input Sheet'!$E$38:$G$48,3,FALSE))),1) -> 1 | P64: 2742110.39 | U64: y | AA64: 1 | AB64: 1 | AH64: 2742110.39
B65: PCF177 | C65: EXIT-CF-204 | D65: District | E65: Urban East | F65: WYNNUM COMMUNITY HALL BUILDING | G65: 56000 | H65: 2400 | I65: 45 | J65: =Table156[[#This Row],[Construction Unit Rate ($/m)]]*Table156[[#This Row],[Area size (m2)]]+Table156[[#This Row],[Utility allowance ($56,000/site)]] -> 164000 | K65: 2400 | L65: 1535.064935 | M65: =Table156[[#This Row],[Land Unit Rate ($/m2)]]*Table156[[#This Row],[Size of land (m2) (*)]] -> 3684155.844 | N65: 2021 | O65: =IFERROR(('General Input Sheet'!$G$38/(VLOOKUP(N65,'General Input Sheet'!$E$38:$G$48,3,FALSE))),1) -> 1 | P65: 3848155.844 | R65: y | X65: 1 | AB65: 1 | AE65: 3848155.844
B66: PCF255 | C66: EXIT-CF-215 | D66: District | E66: Urban East | F66: MT GRAVATT EAST SWIMMING POOL | G66: 56000 | H66: 6410 | I66: 45 | J66: =Table156[[#This Row],[Construction Unit Rate ($/m)]]*Table156[[#This Row],[Area size (m2)]]+Table156[[#This Row],[Utility allowance ($56,000/site)]] -> 344450 | K66: 6410 | L66: 2558.441558 | M66: =Table156[[#This Row],[Land Unit Rate ($/m2)]]*Table156[[#This Row],[Size of land (m2) (*)]] -> 16399610.39 | N66: 2021 | O66: =IFERROR(('General Input Sheet'!$G$38/(VLOOKUP(N66,'General Input Sheet'!$E$38:$G$48,3,FALSE))),1) -> 1 | P66: 16744060.39 | R66: y | X66: 1 | AB66: 1 | AE66: 16744060.39
B67: PCF193 | C67: EXIT-CF-225b | D67: Principal | E67: Urban North | F67: BRISBANE POWERHOUSE TURBINE HALl | G67: 56000 | H67: 4000 | I67: 45 | J67: =Table156[[#This Row],[Construction Unit Rate ($/m)]]*Table156[[#This Row],[Area size (m2)]]+Table156[[#This Row],[Utility allowance ($56,000/site)]] -> 236000 | K67: 4000 | L67: 2046.753247 | M67: =Table156[[#This Row],[Land Unit Rate ($/m2)]]*Table156[[#This Row],[Size of land (m2) (*)]] -> 8187012.987 | N67: 2021 | O67: =IFERROR(('General Input Sheet'!$G$38/(VLOOKUP(N67,'General Input Sheet'!$E$38:$G$48,3,FALSE))),1) -> 1 | P67: 8423012.987 | S67: y | Y67: 1 | AB67: 1 | AF67: 8423012.987
B68: PCF193 | C68: EXIT-CF-225c | D68: Principal | E68: Urban North | F68: BRISBANE POWERHOUSE | G68: 56000 | H68: 4000 | I68: 45 | J68: =Table156[[#This Row],[Construction Unit Rate ($/m)]]*Table156[[#This Row],[Area size (m2)]]+Table156[[#This Row],[Utility allowance ($56,000/site)]] -> 236000 | K68: 4000 | L68: 2046.753247 | M68: =Table156[[#This Row],[Land Unit Rate ($/m2)]]*Table156[[#This Row],[Size of land (m2) (*)]] -> 8187012.987 | N68: 2021 | O68: =IFERROR(('General Input Sheet'!$G$38/(VLOOKUP(N68,'General Input Sheet'!$E$38:$G$48,3,FALSE))),1) -> 1 | P68: 8423012.987 | S68: y | Y68: 1 | AB68: 1 | AF68: 8423012.987
B69: PCF191 | C69: EXIT-CF-228 | D69: District | E69: Urban West | F69: TOOWONG LIBRARY | G69: 56000 | H69: 1000 | I69: 45 | J69: =Table156[[#This Row],[Construction Unit Rate ($/m)]]*Table156[[#This Row],[Area size (m2)]]+Table156[[#This Row],[Utility allowance ($56,000/site)]] -> 101000 | K69: 1000 | L69: 1535.064935 | M69: =Table156[[#This Row],[Land Unit Rate ($/m2)]]*Table156[[#This Row],[Size of land (m2) (*)]] -> 1535064.935 | N69: 2021 | O69: =IFERROR(('General Input Sheet'!$G$38/(VLOOKUP(N69,'General Input Sheet'!$E$38:$G$48,3,FALSE))),1) -> 1 | P69: 1636064.935 | U69: y | AA69: 1 | AB69: 1 | AH69: 1636064.935
B70: PCF173 | C70: EXIT-CF-243a | D70: District | E70: Urban North | F70: VISIBLE INK | G70: 56000 | H70: 1100 | I70: 45 | J70: =Table156[[#This Row],[Construction Unit Rate ($/m)]]*Table156[[#This Row],[Area size (m2)]]+Table156[[#This Row],[Utility allowance ($56,000/site)]] -> 105500 | K70: 1100 | L70: 5116.883117 | M70: =Table156[[#This Row],[Land Unit Rate ($/m2)]]*Table156[[#This Row],[Size of land (m2) (*)]] -> 5628571.429 | N70: 2021 | O70: =IFERROR(('General Input Sheet'!$G$38/(VLOOKUP(N70,'General Input Sheet'!$E$38:$G$48,3,FALSE))),1) -> 1 | P70: 5734071.429 | S70: y | Y70: 1 | AB70: 1 | AF70: 5734071.429
B71: PCF173 | C71: EXIT-CF-243b | D71: Local | E71: Urban North | F71: Maida Lilley Community Centre | G71: 56000 | H71: 1100 | I71: 45 | J71: =Table156[[#This Row],[Construction Unit Rate ($/m)]]*Table156[[#This Row],[Area size (m2)]]+Table156[[#This Row],[Utility allowance ($56,000/site)]] -> 105500 | K71: 1100 | L71: 5116.883117 | M71: =Table156[[#This Row],[Land Unit Rate ($/m2)]]*Table156[[#This Row],[Size of land (m2) (*)]] -> 5628571.429 | N71: 2021 | O71: =IFERROR(('General Input Sheet'!$G$38/(VLOOKUP(N71,'General Input Sheet'!$E$38:$G$48,3,FALSE))),1) -> 1 | P71: 5734071.429 | S71: y | Y71: 1 | AB71: 1 | AF71: 5734071.429
B72: PCF171 | C72: EXIT-CF-247 | D72: District | E72: Urban West | F72: ASHGROVE LIBRARY | G72: 56000 | H72: 1700 | I72: 45 | J72: =Table156[[#This Row],[Construction Unit Rate ($/m)]]*Table156[[#This Row],[Area size (m2)]]+Table156[[#This Row],[Utility allowance ($56,000/site)]] -> 132500 | K72: 1700 | L72: 2558.441558 | M72: =Table156[[#This Row],[Land Unit Rate ($/m2)]]*Table156[[#This Row],[Size of land (m2) (*)]] -> 4349350.649 | N72: 2021 | O72: =IFERROR(('General Input Sheet'!$G$38/(VLOOKUP(N72,'General Input Sheet'!$E$38:$G$48,3,FALSE))),1) -> 1 | P72: 4481850.649 | U72: y | AA72: 1 | AB72: 1 | AH72: 4481850.649
B73: PCF213 | C73: EXIT-CF-252a | D73: Local | E73: Urban South | F73: ANNERLEY HALL BUILDING | G73: 56000 | H73: 2200 | I73: 45 | J73: =Table156[[#This Row],[Construction Unit Rate ($/m)]]*Table156[[#This Row],[Area size (m2)]]+Table156[[#This Row],[Utility allowance ($56,000/site)]] -> 155000 | K73: 2200 | L73: 2558.441558 | M73: =Table156[[#This Row],[Land Unit Rate ($/m2)]]*Table156[[#This Row],[Size of land (m2) (*)]] -> 5628571.429 | N73: 2021 | O73: =IFERROR(('General Input Sheet'!$G$38/(VLOOKUP(N73,'General Input Sheet'!$E$38:$G$48,3,FALSE))),1) -> 1 | P73: 5783571.429 | T73: y | Z73: 1 | AB73: 1 | AG73: 5783571.429
B74: PCF213 | C74: EXIT-CF-252b | D74: District | E74: Urban South | F74: ANNERLEY LIBRARY | G74: 56000 | H74: 1000 | I74: 45 | J74: =Table156[[#This Row],[Construction Unit Rate ($/m)]]*Table156[[#This Row],[Area size (m2)]]+Table156[[#This Row],[Utility allowance ($56,000/site)]] -> 101000 | K74: 1000 | L74: 2558.441558 | M74: =Table156[[#This Row],[Land Unit Rate ($/m2)]]*Table156[[#This Row],[Size of land (m2) (*)]] -> 2558441.558 | N74: 2021 | O74: =IFERROR(('General Input Sheet'!$G$38/(VLOOKUP(N74,'General Input Sheet'!$E$38:$G$48,3,FALSE))),1) -> 1 | P74: 2659441.558 | T74: y | Z74: 1 | AB74: 1 | AG74: 2659441.558
B75: PCF274 | C75: EXIT-CF-253 | D75: Principal | E75: Urban East | F75: GARDEN CITY LIBRARY | G75: 56000 | H75: 1960 | I75: 45 | J75: =Table156[[#This Row],[Construction Unit Rate ($/m)]]*Table156[[#This Row],[Area size (m2)]]+Table156[[#This Row],[Utility allowance ($56,000/site)]] -> 144200 | K75: 1960 | L75: 2558.441558 | M75: =Table156[[#This Row],[Land Unit Rate ($/m2)]]*Table156[[#This Row],[Size of land (m2) (*)]] -> 5014545.455 | N75: 2021 | O75: =IFERROR(('General Input Sheet'!$G$38/(VLOOKUP(N75,'General Input Sheet'!$E$38:$G$48,3,FALSE))),1) -> 1 | P75: 5158745.455 | R75: y | X75: 1 | AB75: 1 | AE75: 5158745.455
B76: PCF113 | C76: EXIT-CF-261c | D76: Principal | E76: Urban North | F76: CHERMSIDE LIBRARY | G76: 56000 | H76: 3000 | I76: 45 | J76: =Table156[[#This Row],[Construction Unit Rate ($/m)]]*Table156[[#This Row],[Area size (m2)]]+Table156[[#This Row],[Utility allowance ($56,000/site)]] -> 191000 | K76: 3000 | L76: 255.8441558 | M76: =Table156[[#This Row],[Land Unit Rate ($/m2)]]*Table156[[#This Row],[Size of land (m2) (*)]] -> 767532.4675 | N76: 2021 | O76: =IFERROR(('General Input Sheet'!$G$38/(VLOOKUP(N76,'General Input Sheet'!$E$38:$G$48,3,FALSE))),1) -> 1 | P76: 958532.4675 | S76: y | Y76: 1 | AB76: 1 | AF76: 958532.4675
B77: PCF152 | C77: EXIT-CF-262 | D77: Local | E77: Urban North | F77: GRANGE COMMUNITY HALL | G77: 56000 | H77: 1000 | I77: 45 | J77: =Table156[[#This Row],[Construction Unit Rate ($/m)]]*Table156[[#This Row],[Area size (m2)]]+Table156[[#This Row],[Utility allowance ($56,000/site)]] -> 101000 | K77: 1000 | L77: 1692.0371 | M77: =Table156[[#This Row],[Land Unit Rate ($/m2)]]*Table156[[#This Row],[Size of land (m2) (*)]] -> 1692037.1 | N77: 2021 | O77: =IFERROR(('General Input Sheet'!$G$38/(VLOOKUP(N77,'General Input Sheet'!$E$38:$G$48,3,FALSE))),1) -> 1 | P77: =J77+M77 -> 1793037.1 | S77: y | Y77: 1 | AB77: 1 | AF77: 1793037.1
B78: PCF273 | C78: EXIT-CF-263 | D78: District | E78: Urban South | F78: Sunnybank Community Centre | G78: 56000 | H78: 6600 | I78: 45 | J78: =Table156[[#This Row],[Construction Unit Rate ($/m)]]*Table156[[#This Row],[Area size (m2)]]+Table156[[#This Row],[Utility allowance ($56,000/site)]] -> 353000 | K78: 6600 | L78: 1692.0371 | M78: =Table156[[#This Row],[Land Unit Rate ($/m2)]]*Table156[[#This Row],[Size of land (m2) (*)]] -> 11167444.86 | N78: 2021 | O78: =IFERROR(('General Input Sheet'!$G$38/(VLOOKUP(N78,'General Input Sheet'!$E$38:$G$48,3,FALSE))),1) -> 1 | P78: 11520444.86 | T78: y | W78: =IF(Q78="y",100%,"") ->  | X78: =IF(R78="y",100%,"") ->  | Y78: =IF(S78="y",100%,"") ->  | Z78: =IF(T78="y",100%,"") -> 1 | AA78: =IF(U78="y",100%,"") ->  | AB78: =SUM(W78:AA78) -> 1 | AD78: =IF(W78="","",(W78/$AB78)*$P78) ->  | AE78: =IF(X78="","",(X78/$AB78)*$P78) ->  | AF78: =IF(Y78="","",(Y78/$AB78)*$P78) ->  | AG78: =IF(Z78="","",(Z78/$AB78)*$P78) -> 11520444.86 | AH78: =IF(AA78="","",(AA78/$AB78)*$P78) -> 
B79: PCF193 | C79: EXIT-CF-280 | D79: District | E79: Urban South | F79: BRISBANE JAZZ CLUB INC | G79: 56000 | H79: 600 | I79: 45 | J79: =Table156[[#This Row],[Construction Unit Rate ($/m)]]*Table156[[#This Row],[Area size (m2)]]+Table156[[#This Row],[Utility allowance ($56,000/site)]] -> 83000 | K79: 600 | L79: 2558.441558 | M79: =Table156[[#This Row],[Land Unit Rate ($/m2)]]*Table156[[#This Row],[Size of land (m2) (*)]] -> 1535064.935 | N79: 2021 | O79: =IFERROR(('General Input Sheet'!$G$38/(VLOOKUP(N79,'General Input Sheet'!$E$38:$G$48,3,FALSE))),1) -> 1 | P79: 1618064.935 | T79: y | Z79: 1 | AB79: 1 | AG79: 1618064.935
B80: PCF212 | C80: EXIT-CF-312 | D80: District | E80: Urban South | F80: LINK VISION INC. | G80: 56000 | H80: 3600 | I80: 45 | J80: =Table156[[#This Row],[Construction Unit Rate ($/m)]]*Table156[[#This Row],[Area size (m2)]]+Table156[[#This Row],[Utility allowance ($56,000/site)]] -> 218000 | K80: 3600 | L80: 1895.141895 | M80: =Table156[[#This Row],[Land Unit Rate ($/m2)]]*Table156[[#This Row],[Size of land (m2) (*)]] -> 6822510.823 | N80: 2021 | O80: =IFERROR(('General Input Sheet'!$G$38/(VLOOKUP(N80,'General Input Sheet'!$E$38:$G$48,3,FALSE))),1) -> 1 | P80: 7040510.823 | T80: y | Z80: 1 | AB80: 1 | AG80: 7040510.823
B81: PCF34 | C81: EXIT-CF-340 | D81: District | E81: Urban North | F81: SISTERS OF THE GOOD SAMARITAN FOUNDATION LTD. | G81: 56000 | H81: 800 | I81: 45 | J81: =Table156[[#This Row],[Construction Unit Rate ($/m)]]*Table156[[#This Row],[Area size (m2)]]+Table156[[#This Row],[Utility allowance ($56,000/site)]] -> 92000 | K81: 800 | L81: 1228.051948 | M81: =Table156[[#This Row],[Land Unit Rate ($/m2)]]*Table156[[#This Row],[Size of land (m2) (*)]] -> 982441.5584 | N81: 2021 | O81: =IFERROR(('General Input Sheet'!$G$38/(VLOOKUP(N81,'General Input Sheet'!$E$38:$G$48,3,FALSE))),1) -> 1 | P81: 1074441.558 | S81: y | Y81: 1 | AB81: 1 | AF81: 1074441.558
B82: PCF73 | C82: EXIT-CF-344 | D82: District | E82: Urban North | F82: KOOBARA ABORIGINAL & ISLANDER FAMILY RESOURCE CENTRE INC. | G82: 56000 | H82: 19600 | I82: 45 | J82: =Table156[[#This Row],[Construction Unit Rate ($/m)]]*Table156[[#This Row],[Area size (m2)]]+Table156[[#This Row],[Utility allowance ($56,000/site)]] -> 938000 | K82: 19600 | L82: 1228.051948 | M82: =Table156[[#This Row],[Land Unit Rate ($/m2)]]*Table156[[#This Row],[Size of land (m2) (*)]] -> 24069818.18 | N82: 2021 | O82: =IFERROR(('General Input Sheet'!$G$38/(VLOOKUP(N82,'General Input Sheet'!$E$38:$G$48,3,FALSE))),1) -> 1 | P82: 25007818.18 | S82: y | Y82: 1 | AB82: 1 | AF82: 25007818.18
B83: PCF213 | C83: EXIT-CF-351 | D83: District | E83: Urban South | F83: MULTICULTURAL DEVELOPMENT ASSOCIATION INC. | G83: 56000 | H83: 2500 | I83: 45 | J83: =Table156[[#This Row],[Construction Unit Rate ($/m)]]*Table156[[#This Row],[Area size (m2)]]+Table156[[#This Row],[Utility allowance ($56,000/site)]] -> 168500 | K83: 2500 | L83: 1893.246753 | M83: =Table156[[#This Row],[Land Unit Rate ($/m2)]]*Table156[[#This Row],[Size of land (m2) (*)]] -> 4733116.883 | N83: 2021 | O83: =IFERROR(('General Input Sheet'!$G$38/(VLOOKUP(N83,'General Input Sheet'!$E$38:$G$48,3,FALSE))),1) -> 1 | P83: 4901616.883 | T83: y | Z83: 1 | AB83: 1 | AG83: 4901616.883
B84: PCF209 | C84: EXIT-CF-390b | D84: District | E84: Urban West | F84: SHED WEST COMMUNITY MEN'S SHED INC. | G84: 56000 | H84: 600 | I84: 45 | J84: =Table156[[#This Row],[Construction Unit Rate ($/m)]]*Table156[[#This Row],[Area size (m2)]]+Table156[[#This Row],[Utility allowance ($56,000/site)]] -> 83000 | K84: 600 | L84: 1404.442007 | M84: =Table156[[#This Row],[Land Unit Rate ($/m2)]]*Table156[[#This Row],[Size of land (m2) (*)]] -> 842665.2043 | N84: 2021 | O84: =IFERROR(('General Input Sheet'!$G$38/(VLOOKUP(N84,'General Input Sheet'!$E$38:$G$48,3,FALSE))),1) -> 1 | P84: 925665.2043 | U84: y | AA84: 1 | AB84: 1 | AH84: 925665.2043
B85: PCF133 | C85: EXIT-CF-400 | D85: District | E85: Urban North | F85: Scouts Association | G85: 56000 | H85: 700 | I85: 45 | J85: =Table156[[#This Row],[Construction Unit Rate ($/m)]]*Table156[[#This Row],[Area size (m2)]]+Table156[[#This Row],[Utility allowance ($56,000/site)]] -> 87500 | K85: 700 | L85: 1705.627706 | M85: =Table156[[#This Row],[Land Unit Rate ($/m2)]]*Table156[[#This Row],[Size of land (m2) (*)]] -> 1193939.394 | N85: 2021 | O85: =IFERROR(('General Input Sheet'!$G$38/(VLOOKUP(N85,'General Input Sheet'!$E$38:$G$48,3,FALSE))),1) -> 1 | P85: 1281439.394 | S85: y | Y85: 1 | AB85: 1 | AF85: 1281439.394
B86: PCF92 | C86: EXIT-CF-410 | D86: District | E86: Urban North | F86: Kindergarten | G86: 56000 | H86: 1600 | I86: 45 | J86: =Table156[[#This Row],[Construction Unit Rate ($/m)]]*Table156[[#This Row],[Area size (m2)]]+Table156[[#This Row],[Utility allowance ($56,000/site)]] -> 128000 | K86: 1600 | L86: 2558.441558 | M86: =Table156[[#This Row],[Land Unit Rate ($/m2)]]*Table156[[#This Row],[Size of land (m2) (*)]] -> 4093506.494 | N86: 2021 | O86: =IFERROR(('General Input Sheet'!$G$38/(VLOOKUP(N86,'General Input Sheet'!$E$38:$G$48,3,FALSE))),1) -> 1 | P86: 4221506.494 | S86: y | Y86: 1 | AB86: 1 | AF86: 4221506.494
B87: PCF132 | C87: EXIT-CF-419 | D87: District | E87: Urban North | F87: Kindergarten | G87: 56000 | H87: 1200 | I87: 45 | J87: =Table156[[#This Row],[Construction Unit Rate ($/m)]]*Table156[[#This Row],[Area size (m2)]]+Table156[[#This Row],[Utility allowance ($56,000/site)]] -> 110000 | K87: 1200 | L87: 2558.441558 | M87: =Table156[[#This Row],[Land Unit Rate ($/m2)]]*Table156[[#This Row],[Size of land (m2) (*)]] -> 3070129.87 | N87: 2021 | O87: =IFERROR(('General Input Sheet'!$G$38/(VLOOKUP(N87,'General Input Sheet'!$E$38:$G$48,3,FALSE))),1) -> 1 | P87: 3180129.87 | S87: y | Y87: 1 | AB87: 1 | AF87: 3180129.87
B88: PCF254 | C88: EXIT-CF-442 | D88: District | E88: Urban East | F88: Hibiscus Gardens Youth Space | G88: 56000 | H88: 400 | I88: 45 | J88: =Table156[[#This Row],[Construction Unit Rate ($/m)]]*Table156[[#This Row],[Area size (m2)]]+Table156[[#This Row],[Utility allowance ($56,000/site)]] -> 74000 | K88: 400 | L88: 1228.051948 | M88: =Table156[[#This Row],[Land Unit Rate ($/m2)]]*Table156[[#This Row],[Size of land (m2) (*)]] -> 491220.7792 | N88: 2021 | O88: =IFERROR(('General Input Sheet'!$G$38/(VLOOKUP(N88,'General Input Sheet'!$E$38:$G$48,3,FALSE))),1) -> 1 | P88: 565220.7792 | R88: y | X88: 1 | AB88: 1 | AE88: 565220.7792
B89: PCF171 | C89: EXIT-CF-443 | D89: District | E89: Urban West | F89: Hands on Art Inc. | G89: 56000 | H89: 100 | I89: 45 | J89: =Table156[[#This Row],[Construction Unit Rate ($/m)]]*Table156[[#This Row],[Area size (m2)]]+Table156[[#This Row],[Utility allowance ($56,000/site)]] -> 60500 | K89: 100 | L89: 2558.441558 | M89: =Table156[[#This Row],[Land Unit Rate ($/m2)]]*Table156[[#This Row],[Size of land (m2) (*)]] -> 255844.1558 | N89: 2021 | O89: =IFERROR(('General Input Sheet'!$G$38/(VLOOKUP(N89,'General Input Sheet'!$E$38:$G$48,3,FALSE))),1) -> 1 | P89: 316344.1558 | U89: y | AA89: 1 | AB89: 1 | AH89: 316344.1558
B90: PCF270 | C90: EXIT-CF-444 | D90: District | E90: Urban South | F90: Rotary Club of Jindalee Inc. | G90: 56000 | H90: 100 | I90: 45 | J90: =Table156[[#This Row],[Construction Unit Rate ($/m)]]*Table156[[#This Row],[Area size (m2)]]+Table156[[#This Row],[Utility allowance ($56,000/site)]] -> 60500 | K90: 100 | L90: 2558.441558 | M90: =Table156[[#This Row],[Land Unit Rate ($/m2)]]*Table156[[#This Row],[Size of land (m2) (*)]] -> 255844.1558 | N90: 2021 | O90: =IFERROR(('General Input Sheet'!$G$38/(VLOOKUP(N90,'General Input Sheet'!$E$38:$G$48,3,FALSE))),1) -> 1 | P90: 316344.1558 | T90: y | Z90: 1 | AB90: 1 | AG90: 316344.1558
B91: PCF192 | C91: EXIT-CF-445 | D91: District | E91: Urban North | F91: MacArthur Museum Brisbane | G91: 56000 | H91: 500 | I91: 45 | J91: =Table156[[#This Row],[Construction Unit Rate ($/m)]]*Table156[[#This Row],[Area size (m2)]]+Table156[[#This Row],[Utility allowance ($56,000/site)]] -> 78500 | K91: 500 | L91: 12280.51948 | M91: =Table156[[#This Row],[Land Unit Rate ($/m2)]]*Table156[[#This Row],[Size of land (m2) (*)]] -> 6140259.74 | N91: 2021 | O91: =IFERROR(('General Input Sheet'!$G$38/(VLOOKUP(N91,'General Input Sheet'!$E$38:$G$48,3,FALSE))),1) -> 1 | P91: 6218759.74 | S91: y | Y91: 1 | AB91: 1 | AF91: 6218759.74
B92: PCF192 | C92: EXIT-CF-456 | D92: District | E92: Urban North | F92: Brisbane School of Arts | G92: 56000 | H92: 1000 | I92: 45 | J92: =Table156[[#This Row],[Construction Unit Rate ($/m)]]*Table156[[#This Row],[Area size (m2)]]+Table156[[#This Row],[Utility allowance ($56,000/site)]] -> 101000 | K92: 1000 | L92: 12280.51948 | M92: =Table156[[#This Row],[Land Unit Rate ($/m2)]]*Table156[[#This Row],[Size of land (m2) (*)]] -> 12280519.48 | N92: 2021 | O92: =IFERROR(('General Input Sheet'!$G$38/(VLOOKUP(N92,'General Input Sheet'!$E$38:$G$48,3,FALSE))),1) -> 1 | P92: 12381519.48 | S92: y | Y92: 1 | AB92: 1 | AF92: 12381519.48
J93: =SUM(J13:J92) -> 14135790 | M93: =SUM(M12:M92) -> 697347051.6 | P93: =SUM(P13:P92) -> 711482841.6

Sheet Future Trunk Assets - LFCF
B2: ='Navigation Pane'!B2 -> Brisbane City Council
B3: Parks and Land for Community Facilities
A4: Return to "Future Trunk Assets"
B5: Future Trunk Assets
B7: Data References | E7: 1. Project costs are on costs to undertake detailed design, survey, geotechnical investigations, project management, and supervision of construction works and obtain certification from a Registered Professional Engineer of Queensland. Project costs equate to 23% of the direct construction costs. 2. Contingency costs are based on the project delivery date, and applied to the direct construction cost, and project cost. Contingencies equate to 7.5% for projects with a delivery date up to 2024, 15% for projects with a delivery date up to 2029 and 20% for projects with a delivery date up to 2034. 3. Total embellishment cost is the sum of direct embellishment cost, indirect embellishment cost, project cost and construction contingency cost. 4. Terminal Value Adjustment is only applicable to items that have an estimated completion date between 2026 and 2036, items value exceeds 20% of the total network value in the same catchment and same year of provision, and items catchment has spare capacity greater than 30%.
B9: Land Valuation Type | D9: Location
K11: Asset Data | AC11: Catchment Asset Allocation | AJ11: Asset Usage | AP11: Cost Allocation based on Net Present Value of Establishment Cost | AV11: Cost Allocation for Service Cost Schedule
B12: Basic Asset Data | G12: Land Cost Valuation | R12: Refined Asset Value | AC12: Fringe | AD12: Urban East | AE12: Urban North | AF12: Urban South | AG12: Urban West | AI12: =AC12 -> Fringe | AJ12: =AD12 -> Urban East | AK12: =AE12 -> Urban North | AL12: =AF12 -> Urban South | AM12: =AG12 -> Urban West | AN12: TOTALS | AP12: =AC12 -> Fringe | AQ12: =AD12 -> Urban East | AR12: =AE12 -> Urban North | AS12: =AF12 -> Urban South | AT12: =AG12 -> Urban West | AV12: =AC12 -> Fringe | AW12: =AD12 -> Urban East | AX12: =AE12 -> Urban North | AY12: =AF12 -> Urban South | AZ12: =AG12 -> Urban West | BA12: =AN12 -> TOTALS
B13: Asset ID | C13: LGIP ID | D13: Hierarchy/Name | E13: Service Catchment | F13: Description | G13: Land Location/Type | H13: Size of Land (m2) | I13: Land Unit Rate ($/m2) | J13: Land Value | K13: Direct Construction Cost | L13: Valuation Year | M13: Multiplier | N13: Construction Contingency Rate % | O13: Construction Contingency Cost ($) | P13: Project Owners Cost (23% Direct Construction Cost)($) | Q13: Total Construction Cost ($) | R13: Year of Provision | S13: Land Cost Escalation | T13: Work Cost Escalation | U13: Spare Capacity (%) | V13: Share of the total Cost with the same year of provision % | W13: Terminal Value Analysis | X13: Terminal Value Adjustment (%) | Y13: Establishment Cost | Z13: Establishment Cost (Escalated) | AA13: Net Present Value of Establishment Cost | AB13: NPV Establishment Cost after Terminal Value Adjustment | AC13: Fringe | AD13: Urban East | AE13: Urban North | AF13: Urban South | AG13: Urban West
B14: Councils ID (from GIS, FAR, AMA etc.) | C14: ID from the LGIP drawings | D14: Local/District Park | U14: Applicable to project year of provision at 2024 | X14: % of cost which is relevant for Summary Cost Calculation | Z14: Gross cost (used for CF forecasts) | AA14: Adjusted Current Day Value | AB14: For Summary Cost Calculation | AV14: =SUM(AV15:AV27) -> 1304045.336 | AW14: =SUM(AW15:AW27) -> 19344796.71 | AX14: =SUM(AX15:AX27) -> 33846801.38 | AY14: =SUM(AY15:AY27) -> 27797698.94 | AZ14: =SUM(AZ15:AZ27) -> 17005367.64
B15: PCF154 | C15: EAF-CF-001 | D15: District | E15: Urban North | F15: Land acquisition, basic site preparation and connection to services to provide DISTRICT COMMUNITY HUB | H15: 6000 | I15: =J15/H15 -> 1862.467667 | J15: 11174806 | K15: 459210.1238 | L15: 2021 | M15: 1 | N15: =IF(R15="","",IF(R15<=YEAR+5,0.075,IF(AND(R15>YEAR+5,R15<=YEAR+10),0.15,IF(AND(R15>YEAR+10,R15<=YEAR+20),0.2,IF(R15>YEAR+20,0.25,""))))) -> 0.15 | O15: =(K15+P15)*N15 -> 84724.21856 | P15: =ROUND((K15)*23%,0) -> 105618 | Q15: =ROUND((K15+P15+(K15+P15)*N15),0) -> 649552 | R15: 2029 | S15: =Landind -> 0.02011185319 | T15: =PPI -> 0.0182 | U15: =IFERROR(IF(FutureTrunkParks[[#This Row],[Year of Provision]]>2024,VLOOKUP(FutureTrunkParks[[#This Row],[Service Catchment]],'Catchment Demand - LFCF'!$C$8:$M$12,11,FALSE),""),"") -> 0.2482566508 | V15: =_xlfn.IFS(FutureTrunkParks[[#This Row],[Year of Provision]]=2024,0,FutureTrunkParks[[#This Row],[Year of Provision]]=2029,FutureTrunkParks[[#This Row],[Establishment Cost]]/SUMIFS(Y$15:Y$27,R$15:R$27,2029,E$15:E$27,FutureTrunkParks[[#This Row],[Service Catchment]]),FutureTrunkParks[[#This Row],[Year of Provision]]=2034,FutureTrunkParks[[#This Row],[Establishment Cost]]/SUMIFS(Y$15:Y$27,R$15:R$27,"2034",E$15:E$27,FutureTrunkParks[[#This Row],[Service Catchment]])) -> 1 | W15: =IF(AND(FutureTrunkParks[[#This Row],[Spare Capacity (%)]]>30%,FutureTrunkParks[[#This Row],[Share of the total Cost with the same year of provision %]]>20%),(1-FutureTrunkParks[[#This Row],[Spare Capacity (%)]]),1) -> 1 | X15: =IF(FutureTrunkParks[[#This Row],[Terminal Value Analysis]]<0,0,FutureTrunkParks[[#This Row],[Terminal Value Analysis]]) -> 1 | Y15: =ROUND((Q15+J15),0) -> 11824358 | Z15: =ROUND((Q15*(1+T15)^(R15-YEAR)+J15*(1+S15)^(R15-YEAR)),0) -> 13854933 | AA15: =ROUND((Z15*(1/(1+WACC))^(R15-YEAR)),0) -> 8752028 | AB15: =FutureTrunkParks[[#This Row],[Net Present Value of Establishment Cost]]*FutureTrunkParks[[#This Row],[Terminal Value Adjustment (%)]] -> 8752028 | AC15: Y | AD15: Y | AE15: Y | AF15: Y | AG15: Y | AI15: 0.01372960729 | AJ15: 0.2036711874 | AK15: 0.310891288 | AL15: 0.2926673479 | AM15: 0.1790405694 | AN15: =SUM(AI15:AM15) -> 1 | AP15: =IF(AI15="","",(AI15/$AN15)*$AA15) -> 120161.9074 | AQ15: =IF(AJ15="","",(AJ15/$AN15)*$AA15) -> 1782535.935 | AR15: =IF(AK15="","",(AK15/$AN15)*$AA15) -> 2720929.258 | AS15: =IF(AL15="","",(AL15/$AN15)*$AA15) -> 2561432.824 | AT15: =IF(AM15="","",(AM15/$AN15)*$AA15) -> 1566968.077 | AV15: =IF(AI15="","",(AI15/$AN15)*$AB15) -> 120161.9074 | AW15: =IF(AJ15="","",(AJ15/$AN15)*$AB15) -> 1782535.935 | AX15: =IF(AK15="","",(AK15/$AN15)*$AB15) -> 2720929.258 | AY15: =IF(AL15="","",(AL15/$AN15)*$AB15) -> 2561432.824 | AZ15: =IF(AM15="","",(AM15/$AN15)*$AB15) -> 1566968.077 | BA15: =SUM(AV15:AZ15) -> 8752028
B16: PCF131 | C16: EVP-CF-001 | D16: District | E16: Urban North | F16: Basic site preparation and connection to services to provide DISTRICT LIBRARY EXTENSION | H16: 5000 | I16: 367.006 | J16: 1835030 | K16: 426412.0322 | L16: 2021 | M16: 1 | N16: 0.075 | O16: 39336.52742 | P16: 98075 | Q16: 563824 | R16: 2024 | S16: 0.02011185319 | T16: 0.0182 | U16: =IFERROR(IF(FutureTrunkParks[[#This Row],[Year of Provision]]>2024,VLOOKUP(FutureTrunkParks[[#This Row],[Service Catchment]],'Catchment Demand - LFCF'!$C$8:$M$12,11,FALSE),""),"") ->  | V16: =_xlfn.IFS(FutureTrunkParks[[#This Row],[Year of Provision]]=2024,0,FutureTrunkParks[[#This Row],[Year of Provision]]=2029,FutureTrunkParks[[#This Row],[Establishment Cost]]/SUMIFS(Y$15:Y$27,R$15:R$27,2029,E$15:E$27,FutureTrunkParks[[#This Row],[Service Catchment]]),FutureTrunkParks[[#This Row],[Year of Provision]]=2034,FutureTrunkParks[[#This Row],[Establishment Cost]]/SUMIFS(Y$15:Y$27,R$15:R$27,"2034",E$15:E$27,FutureTrunkParks[[#This Row],[Service Catchment]])) -> 0 | W16: =IF(AND(FutureTrunkParks[[#This Row],[Spare Capacity (%)]]>30%,FutureTrunkParks[[#This Row],[Share of the total Cost with the same year of provision %]]>20%),(1-FutureTrunkParks[[#This Row],[Spare Capacity (%)]]),1) -> 1 | X16: =IF(FutureTrunkParks[[#This Row],[Terminal Value Analysis]]<0,0,FutureTrunkParks[[#This Row],[Terminal Value Analysis]]) -> 1 | Y16: 2398854 | Z16: 2543162 | AA16: 2140736 | AB16: =FutureTrunkParks[[#This Row],[Net Present Value of Establishment Cost]]*FutureTrunkParks[[#This Row],[Terminal Value Adjustment (%)]] -> 2140736 | AC16: Y | AD16: Y | AE16: Y | AF16: Y | AG16: Y | AI16: 0.01372960729 | AJ16: 0.2036711874 | AK16: 0.310891288 | AL16: 0.2926673479 | AM16: 0.1790405694 | AN16: 1 | AP16: 29391.46458 | AQ16: 436006.243 | AR16: 665536.1723 | AS16: 626523.5277 | AT16: 383278.5924 | AV16: 29391.46458 | AW16: 436006.243 | AX16: 665536.1723 | AY16: 626523.5277 | AZ16: 383278.5924 | BA16: 2140736
B17: PCF291 | C17: INA-CF-002 | D17: District | E17: Urban South | F17: Basic site preparation and connection to services to provide DISTRICT COMMUNITY HUB | H17: 2000 | I17: 1023.3765 | J17: 2046753 | K17: 299280.96 | L17: 2021 | M17: 1 | N17: 0.2 | O17: 73623.192 | P17: 68835 | Q17: 441739 | R17: 2034 | S17: 0.02011185319 | T17: 0.0182 | U17: =IFERROR(IF(FutureTrunkParks[[#This Row],[Year of Provision]]>2024,VLOOKUP(FutureTrunkParks[[#This Row],[Service Catchment]],'Catchment Demand - LFCF'!$C$8:$M$12,11,FALSE),""),"") -> 0.2219865708 | V17: =_xlfn.IFS(FutureTrunkParks[[#This Row],[Year of Provision]]=2024,0,FutureTrunkParks[[#This Row],[Year of Provision]]=2029,FutureTrunkParks[[#This Row],[Establishment Cost]]/SUMIFS(Y$15:Y$27,R$15:R$27,2029,E$15:E$27,FutureTrunkParks[[#This Row],[Service Catchment]]),FutureTrunkParks[[#This Row],[Year of Provision]]=2034,FutureTrunkParks[[#This Row],[Establishment Cost]]/SUMIFS(Y$15:Y$27,R$15:R$27,"2034",E$15:E$27,FutureTrunkParks[[#This Row],[Service Catchment]])) -> 1 | W17: =IF(AND(FutureTrunkParks[[#This Row],[Spare Capacity (%)]]>30%,FutureTrunkParks[[#This Row],[Share of the total Cost with the same year of provision %]]>20%),(1-FutureTrunkParks[[#This Row],[Spare Capacity (%)]]),1) -> 1 | X17: =IF(FutureTrunkParks[[#This Row],[Terminal Value Analysis]]<0,0,FutureTrunkParks[[#This Row],[Terminal Value Analysis]]) -> 1 | Y17: 2488492 | Z17: 3209935 | AA17: 1521653 | AB17: =FutureTrunkParks[[#This Row],[Net Present Value of Establishment Cost]]*FutureTrunkParks[[#This Row],[Terminal Value Adjustment (%)]] -> 1521653 | AC17: Y | AD17: Y | AE17: Y | AF17: Y | AG17: Y | AI17: 0.01372960729 | AJ17: 0.2036711874 | AK17: 0.310891288 | AL17: 0.2926673479 | AM17: 0.1790405694 | AN17: 1 | AP17: 20891.69812 | AQ17: 309916.8733 | AR17: 473068.6611 | AS17: 445338.1479 | AT17: 272437.6196 | AV17: 20891.69812 | AW17: 309916.8733 | AX17: 473068.6611 | AY17: 445338.1479 | AZ17: 272437.6196 | BA17: 1521653
B18: PCF310 | C18: INA-CF-003 | D18: District | E18: Urban South | F18: Land acquisition, basic site preparation and connection to services to provide DISTRICT INTEGRATED FACILITY | H18: 12000 | I18: 64.68833333 | J18: 776260 | K18: 1028083.855 | L18: 2021 | M18: 1 | N18: 0.15 | O18: 189681.4282 | P18: 236459 | Q18: 1454224 | R18: 2029 | S18: 0.02011185319 | T18: 0.0182 | U18: =IFERROR(IF(FutureTrunkParks[[#This Row],[Year of Provision]]>2024,VLOOKUP(FutureTrunkParks[[#This Row],[Service Catchment]],'Catchment Demand - LFCF'!$C$8:$M$12,11,FALSE),""),"") -> 0.2219865708 | V18: =_xlfn.IFS(FutureTrunkParks[[#This Row],[Year of Provision]]=2024,0,FutureTrunkParks[[#This Row],[Year of Provision]]=2029,FutureTrunkParks[[#This Row],[Establishment Cost]]/SUMIFS(Y$15:Y$27,R$15:R$27,2029,E$15:E$27,FutureTrunkParks[[#This Row],[Service Catchment]]),FutureTrunkParks[[#This Row],[Year of Provision]]=2034,FutureTrunkParks[[#This Row],[Establishment Cost]]/SUMIFS(Y$15:Y$27,R$15:R$27,"2034",E$15:E$27,FutureTrunkParks[[#This Row],[Service Catchment]])) -> 0.03781539931 | W18: =IF(AND(FutureTrunkParks[[#This Row],[Spare Capacity (%)]]>30%,FutureTrunkParks[[#This Row],[Share of the total Cost with the same year of provision %]]>20%),(1-FutureTrunkParks[[#This Row],[Spare Capacity (%)]]),1) -> 1 | X18: =IF(FutureTrunkParks[[#This Row],[Terminal Value Analysis]]<0,0,FutureTrunkParks[[#This Row],[Terminal Value Analysis]]) -> 1 | Y18: 2230484 | Z18: 2590259 | AA18: 1636242 | AB18: =FutureTrunkParks[[#This Row],[Net Present Value of Establishment Cost]]*FutureTrunkParks[[#This Row],[Terminal Value Adjustment (%)]] -> 1636242 | AC18: Y | AD18: Y | AE18: Y | AF18: Y | AG18: Y | AI18: 0.01372960729 | AJ18: 0.2036711874 | AK18: 0.310891288 | AL18: 0.2926673479 | AM18: 0.1790405694 | AN18: 1 | AP18: 22464.96009 | AQ18: 333255.351 | AR18: 508693.3829 | AS18: 478874.6067 | AT18: 292953.6994 | AV18: 22464.96009 | AW18: 333255.351 | AX18: 508693.3829 | AY18: 478874.6067 | AZ18: 292953.6994 | BA18: 1636242
B19: PCF211 | C19: IND-CF-001 | D19: District | E19: Urban West | F19: Land acquisition, basic site preparation and connection to services to provide DISTRICT COMMUNITY HUB | H19: 2000 | I19: 0 | J19: 0 | K19: 363321.1084 | L19: 2021 | M19: 1 | N19: 0.075 | O19: 33516.38313 | P19: 83564 | Q19: 480401 | R19: 2024 | S19: 0.02011185319 | T19: 0.0182 | U19: =IFERROR(IF(FutureTrunkParks[[#This Row],[Year of Provision]]>2024,VLOOKUP(FutureTrunkParks[[#This Row],[Service Catchment]],'Catchment Demand - LFCF'!$C$8:$M$12,11,FALSE),""),"") ->  | V19: =_xlfn.IFS(FutureTrunkParks[[#This Row],[Year of Provision]]=2024,0,FutureTrunkParks[[#This Row],[Year of Provision]]=2029,FutureTrunkParks[[#This Row],[Establishment Cost]]/SUMIFS(Y$15:Y$27,R$15:R$27,2029,E$15:E$27,FutureTrunkParks[[#This Row],[Service Catchment]]),FutureTrunkParks[[#This Row],[Year of Provision]]=2034,FutureTrunkParks[[#This Row],[Establishment Cost]]/SUMIFS(Y$15:Y$27,R$15:R$27,"2034",E$15:E$27,FutureTrunkParks[[#This Row],[Service Catchment]])) -> 0 | W19: =IF(AND(FutureTrunkParks[[#This Row],[Spare Capacity (%)]]>30%,FutureTrunkParks[[#This Row],[Share of the total Cost with the same year of provision %]]>20%),(1-FutureTrunkParks[[#This Row],[Spare Capacity (%)]]),1) -> 1 | X19: =IF(FutureTrunkParks[[#This Row],[Terminal Value Analysis]]<0,0,FutureTrunkParks[[#This Row],[Terminal Value Analysis]]) -> 1 | Y19: 480401 | Z19: 507111 | AA19: 426867 | AB19: =FutureTrunkParks[[#This Row],[Net Present Value of Establishment Cost]]*FutureTrunkParks[[#This Row],[Terminal Value Adjustment (%)]] -> 426867 | AC19: Y | AD19: Y | AE19: Y | AF19: Y | AG19: Y | AI19: 0.01372960729 | AJ19: 0.2036711874 | AK19: 0.310891288 | AL19: 0.2926673479 | AM19: 0.1790405694 | AN19: 1 | AP19: 5860.716274 | AQ19: 86940.50875 | AR19: 132709.2314 | AS19: 124930.0328 | AT19: 76426.51074 | AV19: 5860.716274 | AW19: 86940.50875 | AX19: 132709.2314 | AY19: 124930.0328 | AZ19: 76426.51074 | BA19: 426867
B20: PCF131 | C20: MIT-CF-001 | D20: District | E20: Urban West | F20: Land acquisition, basic site preparation and connection to services to provide DISTRICT INTEGRATED FACILITY | H20: 11800 | I20: 1428 | J20: 16850400 | K20: 509751.9958 | L20: 2021 | M20: 1 | N20: 0.15 | O20: 94049.24938 | P20: 117243 | Q20: 721044 | R20: 2029 | S20: 0.02011185319 | T20: 0.0182 | U20: =IFERROR(IF(FutureTrunkParks[[#This Row],[Year of Provision]]>2024,VLOOKUP(FutureTrunkParks[[#This Row],[Service Catchment]],'Catchment Demand - LFCF'!$C$8:$M$12,11,FALSE),""),"") -> 0.1352612007 | V20: =_xlfn.IFS(FutureTrunkParks[[#This Row],[Year of Provision]]=2024,0,FutureTrunkParks[[#This Row],[Year of Provision]]=2029,FutureTrunkParks[[#This Row],[Establishment Cost]]/SUMIFS(Y$15:Y$27,R$15:R$27,2029,E$15:E$27,FutureTrunkParks[[#This Row],[Service Catchment]]),FutureTrunkParks[[#This Row],[Year of Provision]]=2034,FutureTrunkParks[[#This Row],[Establishment Cost]]/SUMIFS(Y$15:Y$27,R$15:R$27,"2034",E$15:E$27,FutureTrunkParks[[#This Row],[Service Catchment]])) -> 1 | W20: =IF(AND(FutureTrunkParks[[#This Row],[Spare Capacity (%)]]>30%,FutureTrunkParks[[#This Row],[Share of the total Cost with the same year of provision %]]>20%),(1-FutureTrunkParks[[#This Row],[Spare Capacity (%)]]),1) -> 1 | X20: =IF(FutureTrunkParks[[#This Row],[Terminal Value Analysis]]<0,0,FutureTrunkParks[[#This Row],[Terminal Value Analysis]]) -> 1 | Y20: 17571444 | Z20: 20593220 | AA20: 13008539 | AB20: =FutureTrunkParks[[#This Row],[Net Present Value of Establishment Cost]]*FutureTrunkParks[[#This Row],[Terminal Value Adjustment (%)]] -> 13008539 | AC20: Y | AD20: Y | AE20: Y | AF20: Y | AG20: Y | AI20: 0.01372960729 | AJ20: 0.2036711874 | AK20: 0.310891288 | AL20: 0.2926673479 | AM20: 0.1790405694 | AN20: 1 | AP20: 178602.1318 | AQ20: 2649464.584 | AR20: 4044241.445 | AS20: 3807174.609 | AT20: 2329056.23 | AV20: 178602.1318 | AW20: 2649464.584 | AX20: 4044241.445 | AY20: 3807174.609 | AZ20: 2329056.23 | BA20: 13008539
B21: PCF174 | C21: MOR-CF-001 | D21: District | E21: Urban East | F21: Land acquisition, basic site preparation and connection to services to provide AQUATIC CENTRE EXTENSION | H21: 2000 | I21: 2558.4415 | J21: 5116883 | K21: 427496.7054 | L21: 2021 | M21: 1 | N21: 0.15 | O21: 78873.10582 | P21: 98324 | Q21: 604694 | R21: 2029 | S21: 0.02011185319 | T21: 0.0182 | U21: =IFERROR(IF(FutureTrunkParks[[#This Row],[Year of Provision]]>2024,VLOOKUP(FutureTrunkParks[[#This Row],[Service Catchment]],'Catchment Demand - LFCF'!$C$8:$M$12,11,FALSE),""),"") -> 0.2136288194 | V21: =_xlfn.IFS(FutureTrunkParks[[#This Row],[Year of Provision]]=2024,0,FutureTrunkParks[[#This Row],[Year of Provision]]=2029,FutureTrunkParks[[#This Row],[Establishment Cost]]/SUMIFS(Y$15:Y$27,R$15:R$27,2029,E$15:E$27,FutureTrunkParks[[#This Row],[Service Catchment]]),FutureTrunkParks[[#This Row],[Year of Provision]]=2034,FutureTrunkParks[[#This Row],[Establishment Cost]]/SUMIFS(Y$15:Y$27,R$15:R$27,"2034",E$15:E$27,FutureTrunkParks[[#This Row],[Service Catchment]])) -> 0.3468218117 | W21: =IF(AND(FutureTrunkParks[[#This Row],[Spare Capacity (%)]]>30%,FutureTrunkParks[[#This Row],[Share of the total Cost with the same year of provision %]]>20%),(1-FutureTrunkParks[[#This Row],[Spare Capacity (%)]]),1) -> 1 | X21: =IF(FutureTrunkParks[[#This Row],[Terminal Value Analysis]]<0,0,FutureTrunkParks[[#This Row],[Terminal Value Analysis]]) -> 1 | Y21: 5721577 | Z21: 6699060 | AA21: 4231732 | AB21: =FutureTrunkParks[[#This Row],[Net Present Value of Establishment Cost]]*FutureTrunkParks[[#This Row],[Terminal Value Adjustment (%)]] -> 4231732 | AC21: Y | AD21: Y | AE21: Y | AF21: Y | AG21: Y | AI21: 0.01372960729 | AJ21: 0.2036711874 | AK21: 0.310891288 | AL21: 0.2926673479 | AM21: 0.1790405694 | AN21: 1 | AP21: 58100.0185 | AQ21: 861881.8812 | AR21: 1315608.612 | AS21: 1238489.781 | AT21: 757651.7068 | AV21: 58100.0185 | AW21: 861881.8812 | AX21: 1315608.612 | AY21: 1238489.781 | AZ21: 757651.7068 | BA21: 4231732
B22: PCF275 | C22: ROC-CF-002 | D22: Local | E22: Urban East | F22: Land acquisition, basic site preparation and connection to services to provide LOCAL COMMUNITY CENTRE | H22: 2000 | I22: 771.687 | J22: 1543374 | K22: 417076.9074 | L22: 2021 | M22: 1 | N22: 0.15 | O22: 76950.7361 | P22: 95928 | Q22: 589956 | R22: 2029 | S22: 0.02011185319 | T22: 0.0182 | U22: =IFERROR(IF(FutureTrunkParks[[#This Row],[Year of Provision]]>2024,VLOOKUP(FutureTrunkParks[[#This Row],[Service Catchment]],'Catchment Demand - LFCF'!$C$8:$M$12,11,FALSE),""),"") -> 0.2136288194 | V22: =_xlfn.IFS(FutureTrunkParks[[#This Row],[Year of Provision]]=2024,0,FutureTrunkParks[[#This Row],[Year of Provision]]=2029,FutureTrunkParks[[#This Row],[Establishment Cost]]/SUMIFS(Y$15:Y$27,R$15:R$27,2029,E$15:E$27,FutureTrunkParks[[#This Row],[Service Catchment]]),FutureTrunkParks[[#This Row],[Year of Provision]]=2034,FutureTrunkParks[[#This Row],[Establishment Cost]]/SUMIFS(Y$15:Y$27,R$15:R$27,"2034",E$15:E$27,FutureTrunkParks[[#This Row],[Service Catchment]])) -> 0.1293149381 | W22: =IF(AND(FutureTrunkParks[[#This Row],[Spare Capacity (%)]]>30%,FutureTrunkParks[[#This Row],[Share of the total Cost with the same year of provision %]]>20%),(1-FutureTrunkParks[[#This Row],[Spare Capacity (%)]]),1) -> 1 | X22: =IF(FutureTrunkParks[[#This Row],[Terminal Value Analysis]]<0,0,FutureTrunkParks[[#This Row],[Terminal Value Analysis]]) -> 1 | Y22: 2133330 | Z22: 2491425 | AA22: 1573809 | AB22: =FutureTrunkParks[[#This Row],[Net Present Value of Establishment Cost]]*FutureTrunkParks[[#This Row],[Terminal Value Adjustment (%)]] -> 1573809 | AC22: Y | AD22: Y | AE22: Y | AF22: Y | AG22: Y | AI22: 0.01372960729 | AJ22: 0.2036711874 | AK22: 0.310891288 | AL22: 0.2926673479 | AM22: 0.1790405694 | AN22: 1 | AP22: 21607.77951 | AQ22: 320539.5478 | AR22: 489283.5071 | AS22: 460602.5061 | AT22: 281775.6595 | AV22: 21607.77951 | AW22: 320539.5478 | AX22: 489283.5071 | AY22: 460602.5061 | AZ22: 281775.6595 | BA22: 1573809
B23: PCF192 | C23: SBR-CF-001 | D23: Principal | E23: Urban South | F23: Land acquisition, basic site preparation and connection to services to provide PRINCIPAL INDOOR SPORTS CENTRE | H23: 20000 | I23: 2558.44155 | J23: 51168831 | K23: 660602.8455 | L23: 2021 | M23: 1 | N23: 0.15 | O23: 121881.2768 | P23: 151939 | Q23: 934423 | R23: 2029 | S23: 0.02011185319 | T23: 0.0182 | U23: =IFERROR(IF(FutureTrunkParks[[#This Row],[Year of Provision]]>2024,VLOOKUP(FutureTrunkParks[[#This Row],[Service Catchment]],'Catchment Demand - LFCF'!$C$8:$M$12,11,FALSE),""),"") -> 0.2219865708 | V23: =_xlfn.IFS(FutureTrunkParks[[#This Row],[Year of Provision]]=2024,0,FutureTrunkParks[[#This Row],[Year of Provision]]=2029,FutureTrunkParks[[#This Row],[Establishment Cost]]/SUMIFS(Y$15:Y$27,R$15:R$27,2029,E$15:E$27,FutureTrunkParks[[#This Row],[Service Catchment]]),FutureTrunkParks[[#This Row],[Year of Provision]]=2034,FutureTrunkParks[[#This Row],[Establishment Cost]]/SUMIFS(Y$15:Y$27,R$15:R$27,"2034",E$15:E$27,FutureTrunkParks[[#This Row],[Service Catchment]])) -> 0.883353279 | W23: =IF(AND(FutureTrunkParks[[#This Row],[Spare Capacity (%)]]>30%,FutureTrunkParks[[#This Row],[Share of the total Cost with the same year of provision %]]>20%),(1-FutureTrunkParks[[#This Row],[Spare Capacity (%)]]),1) -> 1 | X23: =IF(FutureTrunkParks[[#This Row],[Terminal Value Analysis]]<0,0,FutureTrunkParks[[#This Row],[Terminal Value Analysis]]) -> 1 | Y23: 52103254 | Z23: 61084520 | AA23: 38586503 | AB23: =FutureTrunkParks[[#This Row],[Net Present Value of Establishment Cost]]*FutureTrunkParks[[#This Row],[Terminal Value Adjustment (%)]] -> 38586503 | AC23: Y | AD23: Y | AE23: Y | AF23: Y | AG23: Y | AI23: 0.01372960729 | AJ23: 0.2036711874 | AK23: 0.310891288 | AL23: 0.2926673479 | AM23: 0.1790405694 | AN23: 1 | AP23: 529777.5328 | AQ23: 7858958.884 | AR23: 11996207.62 | AS23: 11293009.5 | AT23: 6908549.468 | AV23: 529777.5328 | AW23: 7858958.884 | AX23: 11996207.62 | AY23: 11293009.5 | AZ23: 6908549.468 | BA23: 38586503
B24: PCF211 | C24: TOO-CF-002 | D24: District | E24: Urban West | F24: Land acquisition, basic site preparation and connection to services to provide DISTRICT AQUATIC CENTRE | H24: 10000 | I24: 1895.1419 | J24: 18951419 | K24: 1844954.414 | L24: 2021 | M24: 1 | N24: 0.2 | O24: 453858.8829 | P24: 424340 | Q24: 2723153 | R24: 2034 | S24: 0.02011185319 | T24: 0.0182 | U24: =IFERROR(IF(FutureTrunkParks[[#This Row],[Year of Provision]]>2024,VLOOKUP(FutureTrunkParks[[#This Row],[Service Catchment]],'Catchment Demand - LFCF'!$C$8:$M$12,11,FALSE),""),"") -> 0.1352612007 | V24: =_xlfn.IFS(FutureTrunkParks[[#This Row],[Year of Provision]]=2024,0,FutureTrunkParks[[#This Row],[Year of Provision]]=2029,FutureTrunkParks[[#This Row],[Establishment Cost]]/SUMIFS(Y$15:Y$27,R$15:R$27,2029,E$15:E$27,FutureTrunkParks[[#This Row],[Service Catchment]]),FutureTrunkParks[[#This Row],[Year of Provision]]=2034,FutureTrunkParks[[#This Row],[Establishment Cost]]/SUMIFS(Y$15:Y$27,R$15:R$27,"2034",E$15:E$27,FutureTrunkParks[[#This Row],[Service Catchment]])) -> 1 | W24: =IF(AND(FutureTrunkParks[[#This Row],[Spare Capacity (%)]]>30%,FutureTrunkParks[[#This Row],[Share of the total Cost with the same year of provision %]]>20%),(1-FutureTrunkParks[[#This Row],[Spare Capacity (%)]]),1) -> 1 | X24: =IF(FutureTrunkParks[[#This Row],[Terminal Value Analysis]]<0,0,FutureTrunkParks[[#This Row],[Terminal Value Analysis]]) -> 1 | Y24: 21674572 | Z24: 27993378 | AA24: 13270116 | AB24: =FutureTrunkParks[[#This Row],[Net Present Value of Establishment Cost]]*FutureTrunkParks[[#This Row],[Terminal Value Adjustment (%)]] -> 13270116 | AC24: Y | AD24: Y | AE24: Y | AF24: Y | AG24: Y | AI24: 0.01372960729 | AJ24: 0.2036711874 | AK24: 0.310891288 | AL24: 0.2926673479 | AM24: 0.1790405694 | AN24: 1 | AP24: 182193.4813 | AQ24: 2702740.283 | AR24: 4125563.455 | AS24: 3883729.656 | AT24: 2375889.125 | AV24: 182193.4813 | AW24: 2702740.283 | AX24: 4125563.455 | AY24: 3883729.656 | AZ24: 2375889.125 | BA24: 13270116
B25: PCF254 | C25: UMG-CF-001 | D25: District | E25: Urban East | F25: Land acquisition, basic site preparation and connection to services to provide AQUATIC CENTRE EXTENSION | H25: 3000 | I25: 2558.441667 | J25: 7675325 | K25: 683586.8656 | L25: 2021 | M25: 1 | N25: 0.15 | O25: 126121.7798 | P25: 157225 | Q25: 966934 | R25: 2029 | S25: 0.02011185319 | T25: 0.0182 | U25: =IFERROR(IF(FutureTrunkParks[[#This Row],[Year of Provision]]>2024,VLOOKUP(FutureTrunkParks[[#This Row],[Service Catchment]],'Catchment Demand - LFCF'!$C$8:$M$12,11,FALSE),""),"") -> 0.2136288194 | V25: =_xlfn.IFS(FutureTrunkParks[[#This Row],[Year of Provision]]=2024,0,FutureTrunkParks[[#This Row],[Year of Provision]]=2029,FutureTrunkParks[[#This Row],[Establishment Cost]]/SUMIFS(Y$15:Y$27,R$15:R$27,2029,E$15:E$27,FutureTrunkParks[[#This Row],[Service Catchment]]),FutureTrunkParks[[#This Row],[Year of Provision]]=2034,FutureTrunkParks[[#This Row],[Establishment Cost]]/SUMIFS(Y$15:Y$27,R$15:R$27,"2034",E$15:E$27,FutureTrunkParks[[#This Row],[Service Catchment]])) -> 0.5238632502 | W25: =IF(AND(FutureTrunkParks[[#This Row],[Spare Capacity (%)]]>30%,FutureTrunkParks[[#This Row],[Share of the total Cost with the same year of provision %]]>20%),(1-FutureTrunkParks[[#This Row],[Spare Capacity (%)]]),1) -> 1 | X25: =IF(FutureTrunkParks[[#This Row],[Terminal Value Analysis]]<0,0,FutureTrunkParks[[#This Row],[Terminal Value Analysis]]) -> 1 | Y25: 8642259 | Z25: 10117780 | AA25: 6391304 | AB25: =FutureTrunkParks[[#This Row],[Net Present Value of Establishment Cost]]*FutureTrunkParks[[#This Row],[Terminal Value Adjustment (%)]] -> 6391304 | AC25: Y | AD25: Y | AE25: Y | AF25: Y | AG25: Y | AI25: 0.01372960729 | AJ25: 0.2036711874 | AK25: 0.310891288 | AL25: 0.2926673479 | AM25: 0.1790405694 | AN25: 1 | AP25: 87750.09397 | AQ25: 1301724.475 | AR25: 1987000.733 | AS25: 1870525.991 | AT25: 1144302.707 | AV25: 87750.09397 | AW25: 1301724.475 | AX25: 1987000.733 | AY25: 1870525.991 | AZ25: 1144302.707 | BA25: 6391304
B26: PCF192 | C26: WES-CF-001 | D26: District | E26: Urban South | F26: Land acquisition, basic site preparation and connection to services to provide LOCAL COMMUNITY CENTRE AND LIBRARY EXTENSION | H26: 1800 | I26: 2411 | J26: 4339800 | K26: 219120.2484 | L26: 2021 | M26: 1 | N26: 0.15 | O26: 40427.73726 | P26: 50398 | Q26: 309946 | R26: 2029 | S26: 0.02011185319 | T26: 0.0182 | U26: =IFERROR(IF(FutureTrunkParks[[#This Row],[Year of Provision]]>2024,VLOOKUP(FutureTrunkParks[[#This Row],[Service Catchment]],'Catchment Demand - LFCF'!$C$8:$M$12,11,FALSE),""),"") -> 0.2219865708 | V26: =_xlfn.IFS(FutureTrunkParks[[#This Row],[Year of Provision]]=2024,0,FutureTrunkParks[[#This Row],[Year of Provision]]=2029,FutureTrunkParks[[#This Row],[Establishment Cost]]/SUMIFS(Y$15:Y$27,R$15:R$27,2029,E$15:E$27,FutureTrunkParks[[#This Row],[Service Catchment]]),FutureTrunkParks[[#This Row],[Year of Provision]]=2034,FutureTrunkParks[[#This Row],[Establishment Cost]]/SUMIFS(Y$15:Y$27,R$15:R$27,"2034",E$15:E$27,FutureTrunkParks[[#This Row],[Service Catchment]])) -> 0.07883132166 | W26: =IF(AND(FutureTrunkParks[[#This Row],[Spare Capacity (%)]]>30%,FutureTrunkParks[[#This Row],[Share of the total Cost with the same year of provision %]]>20%),(1-FutureTrunkParks[[#This Row],[Spare Capacity (%)]]),1) -> 1 | X26: =IF(FutureTrunkParks[[#This Row],[Terminal Value Analysis]]<0,0,FutureTrunkParks[[#This Row],[Terminal Value Analysis]]) -> 1 | Y26: 4649746 | Z26: 5447286 | AA26: 3440998 | AB26: =FutureTrunkParks[[#This Row],[Net Present Value of Establishment Cost]]*FutureTrunkParks[[#This Row],[Terminal Value Adjustment (%)]] -> 3440998 | AC26: Y | AD26: Y | AE26: Y | AF26: Y | AG26: Y | AI26: 0.01372960729 | AJ26: 0.2036711874 | AK26: 0.310891288 | AL26: 0.2926673479 | AM26: 0.1790405694 | AN26: 1 | AP26: 47243.55121 | AQ26: 700832.1485 | AR26: 1069776.3 | AS26: 1007067.759 | AT26: 616078.2412 | AV26: 47243.55121 | AW26: 700832.1485 | AX26: 1069776.3 | AY26: 1007067.759 | AZ26: 616078.2412 | BA26: 3440998
B27: PCF153 | C27: WSR-CF-001 | D27: Local | E27: Urban North | F27: Land acquisition, basic site preparation and connection to services to provide LOCAL COMMUNITY CENTRE | H27: 1800 | I27: 2454 | J27: 4417200 | K27: 315830.6248 | L27: 2021 | M27: 1 | N27: 0.075 | O27: 29135.37186 | P27: 72641 | Q27: 417607 | R27: 2024 | S27: 0.02011185319 | T27: 0.0182 | U27: =IFERROR(IF(FutureTrunkParks[[#This Row],[Year of Provision]]>2024,VLOOKUP(FutureTrunkParks[[#This Row],[Service Catchment]],'Catchment Demand - LFCF'!$C$8:$M$12,11,FALSE),""),"") ->  | V27: =_xlfn.IFS(FutureTrunkParks[[#This Row],[Year of Provision]]=2024,0,FutureTrunkParks[[#This Row],[Year of Provision]]=2029,FutureTrunkParks[[#This Row],[Establishment Cost]]/SUMIFS(Y$15:Y$27,R$15:R$27,2029,E$15:E$27,FutureTrunkParks[[#This Row],[Service Catchment]]),FutureTrunkParks[[#This Row],[Year of Provision]]=2034,FutureTrunkParks[[#This Row],[Establishment Cost]]/SUMIFS(Y$15:Y$27,R$15:R$27,"2034",E$15:E$27,FutureTrunkParks[[#This Row],[Service Catchment]])) -> 0 | W27: =IF(AND(FutureTrunkParks[[#This Row],[Spare Capacity (%)]]>30%,FutureTrunkParks[[#This Row],[Share of the total Cost with the same year of provision %]]>20%),(1-FutureTrunkParks[[#This Row],[Spare Capacity (%)]]),1) -> 1 | X27: =IF(FutureTrunkParks[[#This Row],[Terminal Value Analysis]]<0,0,FutureTrunkParks[[#This Row],[Terminal Value Analysis]]) -> 1 | Y27: 4834807 | Z27: 5129936 | AA27: 4318183 | AB27: =FutureTrunkParks[[#This Row],[Net Present Value of Establishment Cost]]*FutureTrunkParks[[#This Row],[Terminal Value Adjustment (%)]] -> 4318183 | AC27: =IF(AC$13=$E27,"Y","") ->  | AE27: Y | AI27: =IF(AC27="Y",100%,"") ->  | AJ27: =IF(AD27="Y",100%,"") ->  | AK27: =IF(AE27="Y",100%,"") -> 1 | AL27: =IF(AF27="Y",100%,"") ->  | AM27: =IF(AG27="Y",100%,"") ->  | AN27: 1 | AR27: 4318183 | AX27: 4318183 | BA27: 4318183
U28: =IFERROR(IF(FutureTrunkParks[[#This Row],[Year of Provision]]>2019,VLOOKUP(FutureTrunkParks[[#This Row],[Service Catchment]],'Catchment Demand - LFCF'!$C$8:$M$12,11,FALSE),""),"") ->  | Y28: =SUBTOTAL(109,FutureTrunkParks[Establishment Cost]) -> 136753578 | Z28: =SUBTOTAL(109,FutureTrunkParks[Establishment Cost (Escalated)]) -> 162262005 | AA28: =SUBTOTAL(109,FutureTrunkParks[Net Present Value of Establishment Cost]) -> 99298710 | AB28: =SUBTOTAL(109,FutureTrunkParks[NPV Establishment Cost after Terminal Value Adjustment]) -> 99298710

Sheet Catchment Demand - LFCF
B2: ='Navigation Pane'!B2 -> Brisbane City Council
B3: Land for Community Facilities
A4: Return to "Catchment Demand"
B5: Catchment Demand(equivalent persons)
B7: Catchment No | C7: Catchment Name (*) | D7: 2021 | E7: 2026 | F7: 2031 | G7: 2036 | H7: 2041 | J7: ="NPV Future Demand ("&(D7+1)& " - " &G7&")" -> NPV Future Demand (2022 - 2036) | L7: ="Ultimate Demand" -> Ultimate Demand | M7: Spare Capacity
B8: 1 | C8: Fringe | D8: 20937 | E8: 20814 | F8: 20639 | G8: 21323 | H8: 21245 | J8: =NPV(5.91%,E43:S43) -> 110.5277269 | L8: 21928 | M8: =(L8-G8)/G8 -> 0.02837311823
B9: 2 | C9: Urban East | D9: 281926 | E9: 291638 | F9: 301216 | G9: 316315 | H9: 331019 | J9: =NPV(5.91%,E44:S44) -> 21453.68765 | L9: 383889 | M9: =(L9-G9)/G9 -> 0.2136288194
B10: 3 | C10: Urban North | D10: 396666 | E10: 429284 | F10: 456967 | G10: 482835 | H10: 508114 | J10: 57395.04033 | L10: 602702 | M10: 0.2482566508
B11: 4 | C11: Urban South | D11: 385242 | E11: 404589 | F11: 426593 | G11: 454532 | H11: 486037 | J11: 43572.93573 | L11: 555432 | M11: 0.2219865708
B12: 5 | C12: Urban West | D12: 255491 | E12: 262389 | F12: 268953 | G12: 278062 | H12: 287882 | J12: 14318.05658 | L12: 315673 | M12: 0.1352612007
C38: Totals | D38: =SUM(D8:D37) -> 1340262 | E38: =SUM(E8:E37) -> 1408714 | F38: =SUM(F8:F37) -> 1474368 | G38: =SUM(G8:G37) -> 1553067 | H38: =SUM(H8:H37) -> 1634297 | J38: =SUM(J8:J37) -> 136850.248 | L38: =SUM(L8:L37) -> 1879624
B41: DETAILED Forecast Demand Growth Profile (OPTIONAL)
B42: Catchment No | C42: Catchment Name | D42: 2021 | E42: =D42 +1 -> 2022 | F42: =E42 +1 -> 2023 | G42: 2024 | H42: 2025 | I42: 2026 | J42: 2027 | K42: 2028 | L42: 2029 | M42: 2030 | N42: 2031 | O42: 2032 | P42: 2033 | Q42: 2034 | R42: 2035 | S42: 2036 | T42: 2037 | U42: 2038 | V42: 2039 | W42: 2040 | X42: 2041
B43: =B8 -> 1 | C43: =C8 -> Fringe | E43: =($E8-$D8)/5 -> -24.6 | F43: =($E8-$D8)/5 -> -24.6 | G43: =($E8-$D8)/5 -> -24.6 | H43: =($E8-$D8)/5 -> -24.6 | I43: =($E8-$D8)/5 -> -24.6 | J43: =($F8-$E8)/5 -> -35 | K43: =($F8-$E8)/5 -> -35 | L43: =($F8-$E8)/5 -> -35 | M43: =($F8-$E8)/5 -> -35 | N43: =($F8-$E8)/5 -> -35 | O43: =($G8-$F8)/5 -> 136.8 | P43: =($G8-$F8)/5 -> 136.8 | Q43: =($G8-$F8)/5 -> 136.8 | R43: =($G8-$F8)/5 -> 136.8 | S43: =($G8-$F8)/5 -> 136.8 | T43: =($H8-$G8)/5 -> -15.6 | U43: =($H8-$G8)/5 -> -15.6 | V43: =($H8-$G8)/5 -> -15.6 | W43: =($H8-$G8)/5 -> -15.6 | X43: =($H8-$G8)/5 -> -15.6
B44: =B9 -> 2 | C44: Urban East | E44: =($E9-$D9)/5 -> 1942.4 | F44: 1942.4 | G44: =($E9-$D9)/5 -> 1942.4 | H44: 1942.4 | I44: 1942.4 | J44: =($F9-$E9)/5 -> 1915.6 | K44: 1915.6 | L44: =($F9-$E9)/5 -> 1915.6 | M44: 1915.6 | N44: =($F9-$E9)/5 -> 1915.6 | O44: =($G9-$F9)/5 -> 3019.8 | P44: =($G9-$F9)/5 -> 3019.8 | Q44: 3019.8 | R44: 3019.8 | S44: 3019.8 | T44: =($H9-$G9)/5 -> 2940.8 | U44: 2940.8 | V44: =($H9-$G9)/5 -> 2940.8 | W44: 2940.8 | X44: 2940.8
B45: 3 | C45: Urban North | E45: 6523.6 | F45: 6523.6 | G45: =($E10-$D10)/5 -> 6523.6 | H45: 6523.6 | I45: 6523.6 | J45: 5536.6 | K45: 5536.6 | L45: =($F10-$E10)/5 -> 5536.6 | M45: 5536.6 | N45: =($F10-$E10)/5 -> 5536.6 | O45: 5173.6 | P45: =($G10-$F10)/5 -> 5173.6 | Q45: 5173.6 | R45: 5173.6 | S45: 5173.6 | T45: 5055.8 | U45: 5055.8 | V45: =($H10-$G10)/5 -> 5055.8 | W45: 5055.8 | X45: 5055.8
B46: 4 | C46: Urban South | E46: 3869.4 | F46: 3869.4 | G46: =($E11-$D11)/5 -> 3869.4 | H46: 3869.4 | I46: 3869.4 | J46: 4400.8 | K46: 4400.8 | L46: =($F11-$E11)/5 -> 4400.8 | M46: 4400.8 | N46: =($F11-$E11)/5 -> 4400.8 | O46: 5587.8 | P46: =($G11-$F11)/5 -> 5587.8 | Q46: 5587.8 | R46: 5587.8 | S46: 5587.8 | T46: 6301 | U46: 6301 | V46: =($H11-$G11)/5 -> 6301 | W46: 6301 | X46: 6301
B47: 5 | C47: Urban West | E47: 1379.6 | F47: 1379.6 | G47: =($E12-$D12)/5 -> 1379.6 | H47: 1379.6 | I47: 1379.6 | J47: 1312.8 | K47: 1312.8 | L47: =($F12-$E12)/5 -> 1312.8 | M47: 1312.8 | N47: =($F12-$E12)/5 -> 1312.8 | O47: 1821.8 | P47: =($G12-$F12)/5 -> 1821.8 | Q47: 1821.8 | R47: 1821.8 | S47: 1821.8 | T47: 1964 | U47: 1964 | V47: =($H12-$G12)/5 -> 1964 | W47: 1964 | X47: 1964

Sheet Summary Cost Schedule
B2: ='Navigation Pane'!B2 -> Brisbane City Council
A4: Return to Navigation Pane
B5: Summary Cost Schedule
B7: Catchment | D7: Demand | G7: Cost of Trunk Infrastrcutrue | J7: Cost per Unit Demand (Average)
B8: No | C8: Name | D8: Existing (A) | E8: NPV Future (B) | F8: TOTAL (A)+ (B) | G8: Existing (C) | H8: NPV Future (D) | I8: TOTAL (C)+ (D)
B9: Land for Community Facilities
B10: ='Catchment Demand - LFCF'!B43 -> 1 | C10: ='Catchment Demand - LFCF'!C43 -> Fringe | D10: =IFERROR(VLOOKUP($C10,'Catchment Demand - LFCF'!$C$8:$J$37,2,FALSE),"") -> 20937 | E10: =IFERROR(VLOOKUP($C10,'Catchment Demand - LFCF'!$C$8:$J$37,8,FALSE),"") -> 110.5277269 | F10: =IFERROR(D10+E10,"") -> 21047.52773 | G10: =HLOOKUP(C10,'Existing Trunk Assets - LFCF'!$AD$9:$AH$12,4,FALSE) -> 0 | H10: =HLOOKUP(C10,'Future Trunk Assets - LFCF'!$AV$12:$AZ$14,3,FALSE) -> 1304045.336 | I10: =G10+H10 -> 1304045.336 | J10: =IFERROR(I10/F10,0) -> 61.9571739
B11: ='Catchment Demand - LFCF'!B44 -> 2 | C11: ='Catchment Demand - LFCF'!C44 -> Urban East | D11: =IFERROR(VLOOKUP($C11,'Catchment Demand - LFCF'!$C$8:$J$37,2,FALSE),"") -> 281926 | E11: =IFERROR(VLOOKUP($C11,'Catchment Demand - LFCF'!$C$8:$J$37,8,FALSE),"") -> 21453.68765 | F11: =IFERROR(D11+E11,"") -> 303379.6876 | G11: =HLOOKUP(C11,'Existing Trunk Assets - LFCF'!$AD$9:$AH$12,4,FALSE) -> 73946878.7 | H11: =HLOOKUP(C11,'Future Trunk Assets - LFCF'!$AV$12:$AZ$14,3,FALSE) -> 19344796.71 | I11: =G11+H11 -> 93291675.42 | J11: =IFERROR(I11/F11,0) -> 307.5079816
B12: ='Catchment Demand - LFCF'!B45 -> 3 | C12: ='Catchment Demand - LFCF'!C45 -> Urban North | D12: =IFERROR(VLOOKUP($C12,'Catchment Demand - LFCF'!$C$8:$J$37,2,FALSE),"") -> 396666 | E12: =IFERROR(VLOOKUP($C12,'Catchment Demand - LFCF'!$C$8:$J$37,8,FALSE),"") -> 57395.04033 | F12: 454061.0403 | G12: =HLOOKUP(C12,'Existing Trunk Assets - LFCF'!$AD$9:$AH$12,4,FALSE) -> 509010309.1 | H12: =HLOOKUP(C12,'Future Trunk Assets - LFCF'!$AV$12:$AZ$14,3,FALSE) -> 33846801.38 | I12: 542857110.5 | J12: 1195.559765
B13: ='Catchment Demand - LFCF'!B46 -> 4 | C13: ='Catchment Demand - LFCF'!C46 -> Urban South | D13: =IFERROR(VLOOKUP($C13,'Catchment Demand - LFCF'!$C$8:$J$37,2,FALSE),"") -> 385242 | E13: =IFERROR(VLOOKUP($C13,'Catchment Demand - LFCF'!$C$8:$J$37,8,FALSE),"") -> 43572.93573 | F13: 428814.9357 | G13: =HLOOKUP(C13,'Existing Trunk Assets - LFCF'!$AD$9:$AH$12,4,FALSE) -> 93917782.28 | H13: =HLOOKUP(C13,'Future Trunk Assets - LFCF'!$AV$12:$AZ$14,3,FALSE) -> 27797698.94 | I13: 121715481.2 | J13: 283.8415155
B14: ='Catchment Demand - LFCF'!B47 -> 5 | C14: ='Catchment Demand - LFCF'!C47 -> Urban West | D14: =IFERROR(VLOOKUP($C14,'Catchment Demand - LFCF'!$C$8:$J$37,2,FALSE),"") -> 255491 | E14: =IFERROR(VLOOKUP($C14,'Catchment Demand - LFCF'!$C$8:$J$37,8,FALSE),"") -> 14318.05658 | F14: 269809.0566 | G14: =HLOOKUP(C14,'Existing Trunk Assets - LFCF'!$AD$9:$AH$12,4,FALSE) -> 34607871.5 | H14: =HLOOKUP(C14,'Future Trunk Assets - LFCF'!$AV$12:$AZ$14,3,FALSE) -> 17005367.64 | I14: 51613239.14 | J14: 191.2954287
C15: Totals | D15: =SUM(D10:D14) -> 1340262 | E15: 136850.248 | F15: 1477112.248 | G15: 711482841.6 | H15: 99298710 | I15: 810781551.6 | J15: 2040.161864
